Workbook

Sheet 申报表 (4)
A1: 岳阳县2024年度农村综合改革一事一议财政奖补项目申报表
P2: 单位：户、人、亩、元
A3: 序号 | B3: 村基本情况 | H3: 项目名称 | I3: 筹资人数 | J3: 项目建设内容 | K3: 工程量 | L3: 资金安排情况 | R3: 计划开工日期 | S3: 备注
B4: 乡镇 | C4: 村 名 | D4: 户数 | E4: 劳动力 | F4: 人口数 | G4: 耕地面积 | L4: 计划申请财政奖补 | M4: 农民筹资 | N4: 集体收入 | O4: 社会捐助 | P4: 其他收入 | Q4: 计划投资总额
A6: 合计 | L6: 18520000 | M6: =SUM(M7:M142) -> 2730300 | N6: =SUM(N7:N142) -> 4137627 | O6: =SUM(O7:O142) -> 1775540 | P6: =SUM(P7:P142) -> 9644859 | Q6: =SUM(Q7:Q142) -> 36808325.72
A7: 1 | B7: 月田镇 | C7: 月田村 | D7: 1102 | E7: 1240 | F7: 3649 | G7: 1904 | H7: 月田村黎国公路路基拓宽 | I7: 50 | J7: 孙家片黎家坳至稻田村国庆片道路拓宽2米 | K7: 430米道路拓宽 | L7: 200000 | M7: 10000 | N7: 16000 | O7: 40000 | P7: 2300 | Q7: =SUBTOTAL(9,L7:P7) -> 268300 | R7: 2024.6.10
A8: 2 | B8: 月田镇 | C8: 花苗村 | D8: 856 | E8: 1240 | F8: 3289 | G8: 2178 | H8: 白石至徐家山新修公路工程 | I8: 100 | J8: 白石至徐家山全线2000米，拓宽至7米 | K8: 2000米道路拓宽 | L8: 150000 | M8: 20000 | N8: 21600 | O8: 0 | P8: 50000 | Q8: 241600 | R8: 2024.8.1
A9: 3 | B9: 月田镇 | C9: 红光村 | D9: 580 | E9: 980 | F9: 2800 | G9: 2409 | H9: 万山至湖北石溪公路硬化 | I9: 200 | J9: 万山至湖北石溪公路长630米，宽3.5米生线硬化 | K9: 公路硬化2205平方米 | L9: 200000 | M9: 30000 | N9: 50000 | O9: 35000 | P9: 500000 | Q9: 815000 | R9: 2024.7.19
A10: 4 | B10: 月田镇 | C10: 月东村 | D10: 501 | E10: 816 | F10: 1792 | G10: 126 | H10: 楼板桥拆除重建 | I10: 85 | J10: 拆除月形片楼板桥，重建现浇板桥 | K10: 桥梁全长9.42M，宽6.5M。 | L10: 150000 | M10: 17000 | N10: 70000 | O10: 0 | P10: 200000 | Q10: 437000 | R10: 2024.8.20
A11: 5 | B11: 月田镇 | C11: 铁山湖 | D11: 1140 | E11: 2054 | F11: 4160 | G11: 1279 | H11: 立元至枫树龙山道路硬化 | I11: 313 | J11: 铁山湖双江木文组1.68公里全线硬化 | K11: 公路硬化1.68公里 | L11: 200000 | M11: 50000 | N11: 100000 | O11: 20000 | P11: 65500 | Q11: 435500 | R11: 2024.9.29
A12: 6 | B12: 月田镇 | C12: 改港 | D12: 720 | E12: 1250 | F12: 3286 | G12: 2112 | H12: 谢家石磡护砌 | I12: 204 | J12: 谢家组长81米，高4.5米宽1.3米石磡护砌 | K12: 公路护砌465立方米 | L12: 180000 | M12: 40800 | N12: 0 | O12: 0 | Q12: 220800 | R12: 2024.5.18
A13: 7 | B13: 月田镇 | C13: 立新 | D13: 986 | E13: 1568 | F13: 3886 | G13: 1994 | H13: 上庄片余家塅新建桥梁工程 | I13: 300 | J13: 重建余家段新建 | K13: 桥梁长3.5米，宽4.5米，高3米 | L13: 100000 | M13: 30000 | Q13: 130000 | R13: 2024.6.10
A14: 8 | B14: 公田镇 | C14: 大塅村 | D14: 789 | E14: 1078 | F14: 2265 | G14: 1575 | H14: 新来组连接路拓宽硬化工程 | I14: 90 | J14: 路基拓宽及平整：长160米，平均拓宽3米，路面硬化：第一段长71米，宽3.8米路面硬化：第二段长90米，宽4.8米 | K14: 160米道路拓宽硬化 | L14: 80000 | M14: 18000 | P14: 20000 | Q14: 118000 | R14: 2024.9
A15: 9 | B15: 公田镇 | C15: 东淇村 | D15: 639 | E15: 1328 | F15: 2590 | G15: 1700 | H15: 白元片道路拓宽硬化 | I15: 100 | J15: 白元片道路道路全长2.2公里，驳岸护砌、拓宽硬化 | K15: 2200米道路拓宽硬化 | L15: 80000 | M15: 20000 | P15: 180000 | Q15: 280000 | R15: 2024.10.6
A16: 10 | B16: 公田镇 | C16: 东新村 | D16: 609 | E16: 1150 | F16: 2369 | G16: 2100 | H16: 东新村S308线西岸、洋石至东岸组路段水沟维修 | I16: 300 | J16: 水沟全长310米，高2.5米，宽1.2米，炮机截割，挖机开挖、回填，底混泥土垫底层，暗水沟安装高压涵筒，水泥灌缝、盖面；明水沟免烧砖砌墙。渣土碎石转运。 | K16: 310米水沟维修 | L16: 120000 | M16: 60000 | P16: 12850 | Q16: 192850 | R16: 2024.11.20
A17: 11 | B17: 公田镇 | C17: 飞云村 | D17: 848 | E17: 1624 | F17: 3050 | G17: 2632 | H17: 飞云村羊楼片东坡组公路拓宽 | I17: 200 | J17: 东坡组路段276米道路进行拓宽至7米以上，其中动用挖机地段176米，平均高度5米左右，宽4米 | K17: 276米道路拓宽 | L17: 180000 | M17: 40000 | P17: 21500 | Q17: 241500 | R17: 2024.10.10
A18: 12 | B18: 公田镇 | C18: 港口村 | D18: 960 | E18: 2300 | F18: 3677 | G18: 4254 | H18: 港口村斜南组沟渠维修 | I18: 100 | J18: 沟渠长1500米，宽0.8米，深1米，U型槽衬砌，砖砌体做挡水墙，埋设涵管，挖机清沟平整。 | K18: 沟渠长1500米 | L18: 80000 | M18: 20000 | P18: 1550 | Q18: 101550 | R18: 2024.10.10
A19: 13 | B19: 公田镇 | C19: 横铺村 | D19: 759 | E19: 1195 | F19: 2998 | G19: 5840 | H19: 横铺村长头组新修便民桥、机耕路工程 | I19: 100 | J19: 新修便民桥：长8.5米，宽5米，预制板打底，钢筋扎模，混凝土盖面；桥墩：宽6米，高2.5米；新修机耕路：长800米，宽4米；挖沟：长40米，宽6米。路墈护砌，长100米,宽0.6米，高2米。 | K19: 便民桥8.5米，机耕路800米 | L19: 150000 | M19: 20000 | Q19: 170000 | R19: 2024.9.10
A20: 14 | B20: 公田镇 | C20: 饶港村 | D20: 609 | E20: 1150 | F20: 2369 | G20: 2100 | H20: 新安组至徐家组道路硬化工程 | I20: 144 | J20: 饶港村新安组至徐家组道路硬化1000米 | K20: 道路硬化1000米 | L20: 180000 | M20: 28800 | P20: 6200 | Q20: 215000 | R20: 2024.11.5
A21: 15 | B21: 公田镇 | C21: 五龙桥村 | D21: 631 | E21: 1520 | F21: 2800 | G21: 2400 | H21: 石李片公共场所及入户道路硬化 | I21: 230 | J21: 石李片公共场所硬化长42米，宽35米，厚0.2米，入户道路长150m，宽4.2m，厚0.2米，总面积2100平方米。 | K21: 公共场所地坪及入户道路硬化积2100平方米 | L21: 90000 | M21: 46000 | P21: 74000 | Q21: 210000 | R21: 2024.9.25
A22: 16 | B22: 公田镇 | C22: 长安村 | D22: 921 | E22: 1678 | F22: 3348 | G22: 4840 | H22: 长安村千岁组千岁门口塘和千岁渠维修工程及新桥组大屋塘维修工程 | I22: 60 | J22: 千岁门口塘清淤扩容面积约为570立方米并淤泥外运，塘堤长25米进行硬化；千岁渠长280米，用浆砌石和砖、水泥砂浆进行硬化； 新桥组大屋塘塘堤长104米、高5.5米塘堤进行加固硬化；对未硬化60米塘提进行修缮 塘泥外运约2200立方米污泥进行清淤并外运，10米低涵改造及其他附属设施改造 | K22: 清淤约2770立方米整修水渠约384米 | L22: 150000 | M22: 12000 | Q22: 162000 | R22: 2024.9.19
A23: 17 | B23: 公田镇 | C23: 公田居委会 | D23: 1402 | E23: 1150 | F23: 5242 | G23: 1704 | H23: 马安组道路拓宽硬化 | I23: 76 | J23: 全长417米，在原机耕泥路基础上拓宽1.5米。硬化宽3米，厚0.2米。需道路开挖整平硬化。砖砌24墙排水沟长35米，高0.5米。沉井一个，长1米，宽1米，高1米 | K23: 417米道路拓宽硬化 | L23: 120000 | M23: 15000 | P23: 31403 | Q23: 166403 | R23: 2024.8.10
A24: 18 | B24: 新墙镇 | C24: 高桥村 | D24: 1748 | E24: 2435 | F24: 5989 | G24: 6689 | H24: 大塘组道路建设工程 | I24: 58 | J24: 新建路基填方长382米，宽4.8米、高1.8米(平均值)②碎石基层长776米、宽3.5米、厚度0.2米(平均值)③C30砼路面(200mm厚)长776米④浆砌片石护砌长度62米、宽0.75米、 高2米，(平均值) | K24: 776米道路建设 | L24: 110000 | M24: 8700 | N24: 202121 | P24: 88000 | Q24: 408821 | R24: 2024.11.1
A25: 19 | B25: 新墙镇 | C25: 清水村 | D25: 725 | E25: 1205 | F25: 3264 | G25: 3533 | H25: 清水村新建组新建台渠 | I25: 28 | J25: 在新建组原渠道的基础上新建一条台渠，采用50、80的U型槽铺设，底平均宽0.7米，高0.6米、长 900米，包括道路清表、土方整理、开挖、硬化、U型槽铺设等。 | K25: 新建900米台渠 | L25: 100000 | M25: 4200 | N25: 1600 | P25: 100000 | Q25: 205800 | R25: 2024.11.6
A26: 20 | B26: 新墙镇 | C26: 清水村 | D26: 725 | E26: 1205 | F26: 3264 | G26: 3533 | H26: 清水村卫星组新建台渠 | I26: 30 | J26: 新建台渠，全长300米，宽12米；渠道长300米、宽0.4-0.7米、高0.6米硬化，包括道路清表、土方整理、开挖、硬化、坡面建设、涵筒铺设等。 | K26: 新建300米台渠 | L26: 100000 | M26: 5400 | P26: 100000 | Q26: 205400 | R26: 2024.10.20
A27: 21 | B27: 新墙镇 | C27: 燎原村 | D27: 1235 | E27: 2239 | F27: 4446 | G27: 5785 | H27: 燎原村方杨片老侯家门前塘清淤护砌改造 | I27: 10 | J27: 老侯家门前塘14.5亩进行整体清淤，塘堤护砌。清淤深度2米，淤泥全部外运，并对周边屋场出行道路78米进行整体加固，路面拓宽1.5米，硬化后黑化，部分周边安装大理石防护栏。 | K27: 1个堰塘整体清淤 | L27: 100000 | M27: 4700 | N27: 51185 | P27: 280000 | Q27: 435885 | R27: 2024.10.20
A28: 22 | B28: 新墙镇 | C28: 三合村 | D28: 1082 | E28: 1400 | F28: 4068 | G28: 3833 | H28: 三合村三组至四组防汛渠道清淤护砌 | I28: 24 | J28: 渠道护砌全长260米，高1.8米，面宽1.5米，浆砌石挡墙600.08立方等。 | K28: 260米渠道护砌 | L28: 100000 | M28: 3600 | N28: 26400 | P28: 100000 | Q28: 230000 | R28: 2024.10.10
A29: 23 | B29: 新墙镇 | C29: 三合村 | D29: 1082 | E29: 1400 | F29: 4068 | G29: 3833 | H29: 三合村联河片蓄水塘清淤护砌 | I29: 24 | J29: 池塘清淤外运1521.25立方，30水涵4米，40过水涵5米，M7.5浆砌石挡墙329.75立方等。 | K29: 1个堰塘清淤1521.25立方 | L29: 60000 | M29: 3600 | N29: 76161 | P29: 40000 | Q29: 179761 | R29: 2024.10.8
A30: 24 | B30: 新墙镇 | C30: 双枫村 | D30: 723 | E30: 1789 | F30: 3120 | G30: 4048 | H30: 双枫村集体经济合作社院内地坪及道路工程 | I30: 20 | J30: 院内地坪300平方米，道路680米进行硬化后铺设沥青混凝土。 | K30: 地坪300平方米680米道路硬化 | L30: 200000 | M30: 7000 | N30: 264600 | Q30: 471600 | R30: 2024.10.12
A31: 25 | B31: 新墙镇 | C31: 新华村 | D31: 1484 | E31: 1400 | F31: 5025 | G31: 6120 | H31: 新黄公路至新农水库道路硬化 | I31: 23 | J31: 道路全长1200米，宽3.5米，厚20公分C30进行硬化 | K31: 1200米道路硬化 | L31: 200000 | M31: 8050 | N31: 252650 | Q31: 460700 | R31: 2024.6.10
A32: 26 | B32: 新墙镇 | C32: 马形村 | D32: 659 | E32: 1529 | F32: 3166 | G32: 3200 | H32: 马形村大堰组道路建设工程 | I32: 0 | J32: 大堰组260米村级道路建设包括外借土方、人工平整、损坏路面拆除、水泥毯铺设、路面硬化。 | K32: 260米道路新建 | L32: 40000 | M32: 1650 | N32: 82047 | P32: 40000 | Q32: 163697 | R32: 2024.8.8
A33: 27 | B33: 毛田镇 | C33: 黄道村 | D33: 326 | E33: 698 | F33: 2248 | G33: 1798 | H33: 相庙组山塘护砌维修 | I33: 35 | J33: 塘外浆砌石长50米，高4米，宽（底1.4+面0.8）塘内坡浆砌石长42米，高4.5米，宽（底1.4+面0.8），塘内清淤、管道维修、土方回填等 | K33: 1个堰塘硬化 | L33: 170000 | M33: 8200 | O33: 0 | P33: 47765 | Q33: 225965 | R33: 2024.9.11
A34: 28 | B34: 毛田镇 | C34: 芭蕉村 | D34: 937 | E34: 730 | F34: 3328 | G34: 1365 | H34: 上新组道路拓宽硬化 | I34: 48 | J34: 挡土墙护砌、挖机回填、排水管预埋。 | K34: 2600米道路拓宽硬化 | L34: 140000 | M34: 11100 | O34: 40000 | P34: 276900 | Q34: 468000 | R34: 2024.7.8
A35: 29 | B35: 毛田镇 | C35: 西台村 | D35: 701 | E35: 560 | F35: 2549 | G35: 2059 | H35: 西台村村短冲组公路维修 | I35: 100 | J35: 路面800米硬化，土方开挖，回填，浆砌石墈，水沟及涵筒填埋等 | K35: 800米道路维修 | L35: 120000 | M35: 21200 | O35: 0 | P35: 6300 | Q35: 147500 | R35: 2024.8.1
A36: 30 | B36: 毛田镇 | C36: 鸣山村 | D36: 745 | E36: 895 | F36: 2845 | G36: 2800 | H36: 甘云公路路基拓宽改造 | I36: 48 | J36: 甘云公路路基拓宽改造3.4公里 | K36: 3400米道路拓宽改造 | L36: 150000 | M36: 11100 | O36: 30000 | P36: 276900 | Q36: 468000 | R36: 2024.7.10
A37: 31 | B37: 毛田镇 | C37: 道仁村 | D37: 937 | E37: 730 | F37: 2494 | G37: 831 | H37: 田河片组级路硬化 | I37: 53 | J37: 道仁村田河片组道路硬 化长度0.52公里，硬化厚度20公分 | K37: 520米道路 | L37: 160000 | M37: 11950 | O37: 0 | P37: 39800 | Q37: 211750 | R37: 2024.10.18
A38: 32 | B38: 毛田镇 | C38: 小港村 | D38: 937 | E38: 812 | F38: 2783 | G38: 1365 | H38: 村部驳堪瞳砌工程 | I38: 38 | J38: 小港村村部驳堪护砌工程长度70米，高5米，基脚1.5米，接面1米，32Pvc管5根 | K38: 护砌702立方 | L38: 170000 | M38: 8950 | O38: 0 | P38: 6050 | Q38: 185000 | R38: 2024.10.10
A39: 33 | B39: 毛田镇 | C39: 李塅村 | D39: 937 | E39: 812 | F39: 3086 | G39: 8200 | H39: 石门中家组桃树山塘维修 | I39: 50 | J39: ①塘内护砌长90米、高4.4米、宽1.14米 ②涵洞30#16个③挖机20小时 ④人工120天 | K39: 1个堰塘维修 | L39: 150000 | M39: 14500 | O39: 0 | P39: 3700 | Q39: 168200 | R39: 2024.10.28
A40: 34 | B40: 毛田镇 | C40: 英桥村 | D40: 1030 | E40: 620 | F40: 3347 | G40: 1569 | H40: 英桥村桃洞片道路维修 | I40: 48 | J40: 对沙坡路11处648.8㎡、桃洞路7处553.7㎡两条路共1202.5㎡的路面进行切割、破除、清运，路面硬化。 | K40: 300米道路维修 | L40: 80000 | M40: 11100 | O40: 0 | P40: 88900 | Q40: 180000 | R40: 2024.6.8
A41: 35 | B41: 毛田镇 | C41: 卢塅村 | D41: 1098 | E41: 872 | F41: 4271 | G41: 3719.85 | H41: 公路硬化拓宽工程 | I41: 59 | J41: 土坡组公路全长480米，宽3.5米，硬化厚度20公分。 | K41: 480米道路硬化拓宽 | L41: 180000 | M41: 13600 | O41: 0 | P41: 23640 | Q41: 217240 | R41: 2024.6.18
A42: 36 | B42: 毛田镇 | C42: 毛田村 | D42: 851 | E42: 2564 | F42: 3862 | G42: 1456 | H42: 育英片道路油化 | I42: 30 | J42: 毛田村育英片x034线-庙山公路维修共油化2170㎡ | K42: 2170平方米道路油化 | L42: 200000 | M42: 7350 | O42: 169685 | P42: 59115 | Q42: 436150 | R42: 2024.10.12
A43: 37 | B43: 毛田镇 | C43: 相思村 | D43: 846 | E43: 2156 | F43: 3275 | G43: 1456 | H43: 坪石公路拓宽 | I43: 30 | J43: 路面500米硬化，土方开挖，回填，浆砌石墈，水沟及涵筒填埋等 | K43: 500平方米道路拓宽 | L43: 150000 | M43: 7350 | O43: 110000 | P43: 33770 | Q43: 301120 | R43: 2024.8.138
A44: 38 | B44: 长湖乡 | C44: 白羊村 | D44: 1002 | E44: 2500 | F44: 3310 | G44: 2848 | H44: 白羊村荷塘组道路硬化工程 | I44: 190 | J44: 路段全长480米，路宽4.2米，依据该道路实际情况需对维修路段路基进行整理，原有路基对相应路用C30混凝土硬化20公分厚。 | K44: 480米道路硬化拓宽 | L44: 190000 | M44: 38000 | P44: 41800 | Q44: 269800 | R44: 2024.10.12
A45: 39 | B45: 长湖乡 | C45: 范家村 | D45: 1167 | E45: 3040 | F45: 4120 | G45: 4952.53 | H45: 范家村高家片段内组道路硬化工程 | I45: 30 | J45: 范家村高家片段内组道路406.57米、宽均4.5米硬化 | K45: 道路406.57米硬化 | L45: 180000 | M45: 10600 | Q45: 190600 | R45: 2024.10.25
A46: 40 | B46: 长湖乡 | C46: 范家村 | D46: 1167 | E46: 3040 | F46: 4120 | G46: 4952.53 | H46: 范家村范家片公路组道路护坡工程 | I46: 62 | J46: 长84.73米挡土墙护坡、水沟长104.5米护砌 | K46: 水渠104.5米，护坡84.73米工程 | L46: 190000 | M46: 9600 | Q46: 199600 | R46: 2024.6.10
A47: 41 | B47: 长湖乡 | C47: 长湖村 | D47: 1350 | E47: 2860 | F47: 4892 | G47: 4800 | H47: 县工业园至千公塘路连接道路工程工程 | I47: 115 | J47: 道路全长100米、宽20米，开挖运输土方3200余方，基础路面夯实平整，底层水稳料厚23㎝（两层15㎝+18㎝）的摊铺，路面沥青11㎝厚（两层5㎝+6㎝）铺设。 | K47: 道路全长100米、宽20米。 | L47: 180000 | M47: 23000 | P47: 252700 | Q47: 455700 | R47: 2024.11.1
A48: 42 | B48: 长湖乡 | C48: 团结村 | D48: 887 | E48: 2860 | F48: 4300 | G48: 5283 | H48: 团结村大众组公路硬化工程 | I48: 50 | J48: 团结村大众组路长400米，宽4米，先将路面平整夯实，再用C30混凝土硬化20公分厚。 | K48: 道路硬化400米 | L48: 140000 | M48: 10000 | Q48: 150000 | R48: 2024.7.10
A49: 43 | B49: 长湖乡 | C49: 团结村 | D49: 887 | E49: 2860 | F49: 4300 | G49: 5283 | H49: 团结村三闾片八组道路拓宽硬化工程 | I49: 180 | J49: 项目全长1公里，拓宽1.5米，厚度0.2米，窄的路基处需拓宽平整后再硬化，以承包的方式建设，全程使用C30混凝土，门口塘安装护栏。 | K49: 道路拓宽硬化1000米 | L49: 200000 | M49: 36000 | Q49: 236000 | R49: 2024.6.25
A50: 44 | B50: 长湖乡 | C50: 自强村 | D50: 835 | E50: 2040 | F50: 2875 | G50: 2652.5 | H50: 村部门前路马头组路段硬化(二期) | I50: 80 | J50: 全长硬化498米，宽5米，厚0.2米，三处叉支硬化约18立方 | K50: 道路硬化498米 | L50: 180000 | M50: 16000 | P50: 84500 | Q50: 280500 | R50: 2024.6.10
A51: 45 | B51: 步仙镇 | C51: 狮山社区 | D51: 1256 | F51: 5050 | G51: 2580 | H51: 狮山居委会中学港排水渠硬化 | I51: 49 | J51: 狮山居委会中学港排水渠长度630米，需驳岸硬化646m³ | K51: 630米排水渠硬化 | L51: 200000 | M51: 11600 | P51: 224300 | Q51: 435900 | R51: 2024.6.30
A52: 46 | B52: 步仙镇 | C52: 凤凰村 | D52: 1068 | E52: 2245 | F52: 4025 | G52: 3925 | H52: 凤凰村山田源美丽屋场整治 | I52: 250 | J52: 长40米、宽25米文化广场硬化、320平方米道路硬化 | K52: 1320平方米文化广场硬化 | L52: 100000 | M52: 50000 | P52: 150000 | Q52: 300000 | R52: 2024.10.10
A53: 47 | B53: 步仙镇 | C53: 关王村 | D53: 1036 | F53: 3710 | G53: 3410 | H53: 关王村龟山至肖冲道路建设 | I53: 39 | J53: 关王村龟山至肖冲道路拓宽到4.5米，长900米、宽3.5米路面硬化 | K53: 900米道路拓宽硬化 | L53: 140000 | M53: 7800 | P53: 301700 | Q53: 449500 | R53: 2024.5.10
A54: 48 | B54: 步仙镇 | C54: 北斗岭 | D54: 884 | F54: 3631 | G54: 2740 | H54: 北斗岭村泉冲片道路拓宽硬化 | I54: 48 | J54: 泉冲片道路拓宽硬化1.5米，长2公里 | K54: 1979米道路拓宽硬化 | L54: 130000 | M54: 9600 | P54: 316400 | Q54: 456000 | R54: 2024.7.30
A55: 49 | B55: 步仙镇 | C55: 关王村 | D55: 1036 | F55: 3710 | G55: 3410 | H55: 关王村产业路建设 | I55: 33 | J55: 关王村产业路拓宽到3.5，长700米路面平整、硬化 | K55: 宽3.5米，长700米 | L55: 180000 | M55: 6600 | P55: 127200 | Q55: 313800 | R55: 2024.11.4
A56: 50 | B56: 步仙镇 | C56: 仙桥村 | D56: 1068 | E56: 1809 | F56: 4023 | G56: 3765.5 | H56: 辛淑八组道路白改黑 | I56: 35 | J56: 全长830米，宽5米，工程包括路面修补和白改黑 | K56: 白改黑830米4150平方米 | L56: 180000 | M56: 10000 | P56: 201600 | Q56: 391600 | R56: 2024.11.1
A57: 51 | B57: 步仙镇 | C57: 北斗岭 | D57: 884 | F57: 3631 | G57: 2740 | H57: 北斗岭村通景路疏通及护砌 | I57: 50 | J57: 北斗岭村通景路疏通及护砌 | K57: 通景路疏通560米，驳岸护砌160立方 | L57: 200000 | M57: 10000 | P57: 202800 | Q57: 412800 | R57: 2024.7.30
A58: 52 | B58: 步仙镇 | C58: 关王村 | D58: 1036 | F58: 3710 | G58: 3410 | H58: 沙湾至汤怀洞连接路 | I58: 30 | J58: 沙湾至汤怀洞连接路拓宽到3.5，长900米路面平整、硬化 | K58: 拓宽硬化900米 | L58: 200000 | M58: 6000 | P58: 272100 | Q58: 478100 | R58: 2024.4.8
A59: 53 | B59: 步仙镇 | C59: 新合村 | D59: 1033 | F59: 3493 | G59: 2910 | H59: 新合村付仁组道路平整硬化 | I59: 52 | J59: 付仁道路平整硬化725米 | K59: 硬化725米 | L59: 200000 | M59: 12500 | P59: 222500 | Q59: 435000 | R59: 2024.3.25
A60: 54 | B60: 黄沙街镇 | C60: 大明村 | D60: 1415 | E60: 2315 | F60: 4552 | G60: 4056 | H60: 大明村作新片墈门塘清淤维修项目工程 | I60: 100 | J60: 作新片墈门塘面积共5亩，塘底挖深40公分，泥土18000方 | K60: 1个堰塘清淤维修 | L60: 130000 | M60: 32000 | N60: 20000 | Q60: 182000 | R60: 2024.10.1
A61: 55 | B61: 黄沙街镇 | C61: 黄秀村 | D61: 960 | E61: 1872 | F61: 3141 | G61: 3650 | H61: 黄秀村熊范屋至方天士连接路 | I61: 75 | J61: 熊范屋至方天士连接路项目硬化全长0.71公里、4.5米宽、0.2米厚。 | K61: 710米道路硬化 | L61: 150000 | M61: 30000 | O61: 201638 | Q61: 381638 | R61: 2024.10.1
A62: 56 | B62: 黄沙街镇 | C62: 三和村 | D62: 820 | E62: 1688 | F62: 3247 | G62: 5214 | H62: 三和村中乔片村、组道太阳能路灯架设 | I62: 100 | J62: 三和村中乔片村、组道太阳能路灯架设280盏 | K62: 280盏路灯 | L62: 160000 | M62: 29000 | N62: 217000 | Q62: 406000 | R62: 2024.9.20
A63: 57 | B63: 黄沙街镇 | C63: 苍坪村 | D63: 1762 | E63: 2872 | F63: 5862 | G63: 3154 | H63: 坪中八组组级道路硬化拓宽及油化工程 | I63: 150 | J63: 路面加宽油化维修120米,路面硬化为20cm厚C25水泥混凝退路面，扩宽后路面保持5m。 | K63: 120米道路拓宽及油化 | L63: 190000 | M63: 42000 | N63: 30000 | Q63: 262000 | R63: 2024.8.1
A64: 58 | B64: 黄沙街镇 | C64: 黄沙村 | D64: 1235 | E64: 2895 | F64: 4056 | G64: 4251 | H64: 黄沙村树德桥危桥改造 | I64: 100 | J64: 根据村民意见，拟对该桥进行拆除重建，拟建桥梁长32米；宽5.5米。 | K64: 重建1座桥梁 | L64: 200000 | M64: 35000 | N64: 159500 | O64: 495500 | Q64: 890000 | R64: 2024.4.16
A65: 59 | B65: 黄沙街镇 | C65: 荷塘村 | D65: 1785 | E65: 1920 | F65: 3650 | G65: 3250 | H65: 荷塘村公路建设工程 | I65: 150 | J65: 荷塘村福堂片与滨湖片连接道路年久失修，路面坑洼不平。路面硬化维修1600米 | K65: 1500米道路硬化 | L65: 200000 | M65: 33600 | N65: 10000 | Q65: 243600 | R65: 2024.9.10
A66: 60 | B66: 黄沙街镇 | C66: 和谐村 | D66: 1762 | E66: 2872 | F66: 4562 | G66: 3154 | H66: 和谐村友义片邹智道路拓宽公路护彻工程 | I66: 100 | J66: 友义片邹智道路拓宽公路护彻工程160米、宽4米、厚0.2米， | K66: 160米拓宽护彻 | L66: 80000 | M66: 24500 | N66: 20000 | Q66: 124500 | R66: 2024.10.28
A67: 61 | B67: 新开镇 | C67: 共和村 | D67: 1226 | E67: 3000 | F67: 4730 | G67: 5000 | H67: 船山片廖家组门口塘清淤护砌 | I67: 110 | J67: 塘四周清杂，塘堤加固、护砌、护坡，修建次口，塘内淤泥清理外运 | K67: 4000米堰塘1个 | L67: 120000 | M67: 22000 | N67: 90000 | O67: 12000 | P67: 21000 | Q67: 265000 | R67: 2024.10.15
A68: 62 | B68: 新开镇 | C68: 友谊村 | D68: 867 | E68: 1500 | F68: 3390 | G68: 2935 | H68: 枫树片岩泉胡机埠拆除扩建 | I68: 18 | J68: 岩泉胡机埠拆除扩建 | K68: 整修机电1座 | L68: 110000 | M68: 8700 | N68: 40000 | O68: 6300 | P68: 150000 | Q68: 315000 | R68: 2024.9.12
A69: 63 | B69: 新开镇 | C69: 友谊村 | D69: 867 | E69: 1600 | F69: 3390 | G69: 3232 | H69: 杨华片六组机埠改扩建 | I69: 20 | J69: 杨华片六组河岸护砌80米、机埠扩建、机械设备更换 | K69: 整修机电1座 | L69: 200000 | M69: 8200 | N69: 100000 | O69: 21800 | Q69: 330000 | R69: 2024.9.10
A70: 64 | B70: 新开镇 | C70: 朱砂桥村 | D70: 810 | E70: 1686 | F70: 2910 | G70: 2821 | H70: 朱砂片玉光屋场山塘水渠清淤加固 | I70: 160 | J70: 朱砂片玉光屋场山塘清淤，310米水渠用片石护砌，底涵重建 | K70: 10000立方堰塘1个 | L70: 120000 | M70: 32000 | N70: 278000 | O70: 8000 | Q70: 438000 | R70: 2024.9.10
A71: 65 | B71: 新开镇 | C71: 马山村 | D71: 1230 | E71: 2643 | F71: 4686 | G71: 5324 | H71: 方元片老屋大塘维修 | I71: 139 | J71: 塘堤加固、护砌、塘内淤泥清理外运. | K71: 5000立方堰塘1个 | L71: 120000 | M71: 38450 | P71: 227810 | Q71: =SUBTOTAL(9,L71:P71) -> 386260 | R71: 2024.10.10
A72: 66 | B72: 新开镇 | C72: 常山村 | D72: 1224 | E72: 1800 | F72: 4104 | G72: 4136 | H72: 七星片吴明港排渍渠硬化 | I72: 110 | J72: 吴明港排渍渠道疏浚硬化1500米 | K72: 渠道疏浚硬化1500米 | L72: 200000 | M72: 22000 | N72: 100000 | O72: 10000 | P72: 30000 | Q72: 362000 | R72: 2024.9.20
A73: 67 | B73: 新开镇 | C73: 万福村 | D73: 1154 | E73: 2765 | F73: 4902 | G73: 5500 | H73: 万福片何家抗旱灌渠疏浚硬化 | I73: 100 | J73: 何家抗旱机埠至机耕路长630米破旧U型槽清基和徐彭水库下机耕路边400米破旧U型槽维修、疏浚、硬化。 | K73: 整修水渠1030米 | L73: 180000 | M73: 20000 | P73: 81000 | Q73: 281000 | R73: 2024.9.12
A74: 68 | B74: 柏祥镇 | C74: 临港村 | D74: 1056 | E74: 2243 | F74: 4373 | G74: 4312 | H74: 黄沙塝塘维修项目工程 | I74: 23 | J74: 黄沙塝塘面积约13.8亩，清理山塘内0.8m深的淤泥约7350m³；山塘塘提长80m高3.5m宽3.5m做好塘提的护坡及硬化；山塘排水底口更换； | K74: 13.8亩山塘维修 | L74: 150000 | M74: 33450 | N74: 17500 | O74: 11000 | P74: 8146 | Q74: 220096 | R74: 2024.11.5
A75: 69 | B75: 柏祥镇 | C75: 七一村 | D75: 1078 | E75: 2699 | F75: 4215 | G75: 1066 | H75: 新屋组虎形路拓宽硬化工程 | I75: 15 | J75: 该道路修路长度为376m,需进行路床整形、夯实。硬化路长376m、宽3.5m（使用C30商品砼），硬化厚度为20mm。过路涵改造长12m，会车道平整长8m，道路旁水沟砌砖长度376m（50#砖） | K75: 376米道路拓宽硬化 | L75: 170000 | M75: 36250 | N75: 1830 | O75: 1000 | P75: 804 | Q75: 209884 | R75: 2024.11.21
A76: 70 | B76: 柏祥镇 | C76: 万庆村 | D76: 1510 | E76: 2920 | F76: 5162 | G76: 4751 | H76: 蒋渭片沙塘组道路拓宽护砌及硬化工程 | I76: 24 | J76: 道路全长180米，需在原有硬化3.5米道路基础上再拓宽硬化2.5米，施工内容包含人工清障290㎡，路床整形450㎡，机械挖运土方380m³，M7.5浆砌石挡墙3处共计435m³，M7.5砖砌体水泥砌筑砂浆共计30m³，路面水泥混凝土面层450㎡。 | K76: 180米道路拓宽硬化 | L76: 180000 | M76: 48600 | N76: 18000 | O76: 9200 | P76: 5440 | Q76: 261240 | R76: 2024.10.21
A77: 71 | B77: 柏祥镇 | C77: 桑园村 | D77: 684 | E77: 1215 | F77: 2855 | G77: 3399 | H77: 四知片门头组大塘清淤护砌工程 | I77: 25 | J77: 黄沙塝塘面积约21.5亩，清理山塘内0.8m深的淤泥约10045m³；山塘塘提长80m高5m宽3m做好塘提的护坡及硬化；山塘排水底口更换。 | K77: 10045m³山塘清淤护砌 | L77: 150000 | M77: 43750 | N77: 5000 | O77: 2050 | P77: 1500 | Q77: 202300 | R77: 2024.11.13
A78: 72 | B78: 柏祥镇 | C78: 中村村 | D78: 763 | E78: 1400 | F78: 3352 | G78: 2996 | H78: 齐兴支渠堤坎护砌工程 | I78: 15 | J78: 该项目位于中村村齐寿组，对齐兴支渠进行堤坎护砌，护砌，基脚土方开挖400立方米，浆砌石护砌510方，土方回填490方。 | K78: 400立方米护砌 | L78: 180000 | M78: 29250 | N78: 1500 | O78: 800 | P78: 700 | Q78: 212250 | R78: 2024.11.10
A79: 73 | B79: 柏祥镇 | C79: 伏太村 | D79: 1192 | E79: 2699 | F79: 4578 | G79: 4500 | H79: 道路建设 | I79: 15 | J79: 该项目位于伏太村境内，对原有村级断头路面进行硬化，硬化长度为247米，厚度为20公分，宽度平均为3.5米；对原已硬化损坏路面进行重新硬化，硬化长度为：255米，厚度为20公分，宽度平均为3.5米。 | K79: 1757米道路硬化 | L79: 200000 | M79: 18250 | N79: 2500 | O79: 800 | P79: 765 | Q79: 222315 | R79: 2024.10.20
A80: 74 | B80: 柏祥镇 | C80: 柏祥村 | D80: 960 | E80: 2003 | F80: 4056 | G80: 4170 | H80: 杨姓冲Y308线道路拓宽硬化工程 | I80: 25 | J80: 道路长约1890米，沿线路基拓宽3米，路基土方回填约3780方（使用优质黄土），路面硬化宽度2.5米，厚度20公分，面积约4725平方，浆砌石挡土墙约950方，砖砌体挡土墙约74方， 过路涵道改造约140米，使用30#水泥涵管。 | K80: 1890米道路 | L80: 160000 | M80: 51750 | N80: 287533 | O80: 262267 | P80: 237000 | Q80: 998550 | R80: 2024.11.8
A81: 75 | B81: 柏祥镇 | C81: 柏祥村 | D81: 960 | E81: 2003 | F81: 4056 | G81: 4170 | H81: 新屋组至柏祥小学道路拓宽硬化工程 | I81: 25 | J81: 道路长约1119米，沿线路基拓宽2.5米，路基土方回填约4450方，路床整形2800平方，旧水泥路面开挖350方，砾卵石垫层铺设约230方，厚度10公分，16#带肋钢筋约2200根，原路面硬化宽度2米，厚度20公分，面积约2100平方，新建路面硬化4200平方，砖砌体挡土墙约1050方，沿线过路涵道改造 | K81: 1119米道路拓宽硬化 | L81: 150000 | M81: 48750 | N81: 354396 | O81: 277000 | P81: 166854 | Q81: 997000 | R81: 2024.11.4
A82: 76 | B82: 筻口镇 | C82: 大塘村 | D82: 1114 | E82: 2964 | F82: 3555 | G82: 4446 | H82: 刘桂片五组：庙新上塘.下塘，孙家上塘.下塘，老家上塘.下塘，杀猪塘维修。 | I82: 35 | J82: 对5个堰塘进行低涵改造、堤坝清杂、堤坝加固，塘里清污 | K82: 5个堰塘清污维修 | L82: 40000 | M82: 9250 | P82: 32480 | Q82: 81730 | R82: 2024.9.30
A83: 77 | B83: 筻口镇 | C83: 沙南新村 | D83: 1063 | E83: 3105 | F83: 4139 | G83: 6300 | H83: 山塘清淤护砌 | I83: 36 | J83: 该山塘清淤面积2.6亩及片石护砌49米，污泥外运，安全护栏安装。 | K83: 1个堰塘2.9亩清淤 | L83: 40000 | M83: 5200 | P83: 12068 | Q83: 57268 | R83: 2024.10.1
A84: 78 | B84: 筻口镇 | C84: 漆市村 | D84: 813 | E84: 2818 | F84: 3562 | G84: 2924 | H84: 漆市片泄洪道修桥及驳岸护砌 | I84: 23 | J84: 漆市片泄洪道全长2.6公里，由于渠道管理不善及年久失修导致淤泥积堵，杂草丛生严重发挥泄洪道泄洪的作用，对全渠道进行清淤。修建跨渠桥三座和多处驳岸挎塌重新修建。 | K84: 泄洪道2.6公里驳岸新修 | L84: 140000 | M84: 7300 | P84: 39005 | Q84: 186305 | R84: 2024.8.10
A85: 79 | B85: 筻口镇 | C85: 移山村 | D85: 1568 | E85: 3985 | F85: 5512 | G85: 7586 | H85: 移山村花坪片渠道硬化 | I85: 11 | J85: 全长113米渠道新建底宽50CM,G高80CM ,顶宽80CM包工包料。 | K85: 113米渠道硬化 | L85: 110000 | M85: 2200 | P85: 24400 | Q85: 136600 | R85: 2024.9.10
A86: 80 | B86: 筻口镇 | C86: 释迦寺村 | D86: 998 | E86: 2780 | F86: 4020 | G86: 6380 | H86: 刘本九组机耕路硬化 | I86: 10 | J86: 道路硬化140米，宽2.6米厚 0.2米.对16米塘堤进行硬化和护砌. | K86: 140米机耕路硬化 | L86: 40000 | M86: 3500 | P86: 1896 | Q86: 45396 | R86: 2024.7.18
A87: 81 | B87: 筻口镇 | C87: 熊市村 | D87: 1221 | E87: 2749 | F87: 3937 | G87: 5449 | H87: 熊市村保安片七组后垄塘清污护砌工程 | I87: 23 | J87: 项目对保安片七组后垄塘进行了清淤护砌，修建前山塘长35米、宽2.5米，高4米，修建后塘堤长达42米，宽4米，高5.5米，另对塘内斜坡高10.8米，长42米，厚8公分进行了护砌并安装了高低涵管。 | K87: 1个堰塘清淤护砌 | L87: 40000 | M87: 7450 | P87: 27200 | Q87: 74650 | R87: 2024.9.16
A88: 82 | B88: 筻口镇 | C88: 熊市村 | D88: 1221 | E88: 2749 | F88: 3937 | G88: 5449 | H88: 新塘片优质稻配套水利建设 | I88: 35 | J88: 山塘塘坝扫障约500平方，外坡扫障390平方后进行清淤扩容8640立方及外运，对塘坝加固并外运粘土390立方，对脚槽开挖并护砌，内塘坡用砂卵石垫层并进行护砌，对坡面外运粘土、内坡坡面、外坡进行平整，塘内修建梯阶，低涵管道安装和泄洪道修建. | K88: 1个堰塘清淤29375平方米 | L88: 100000 | M88: 9550 | P88: 152368.72 | Q88: 261918.72 | R88: 2024.7.24
A89: 83 | B89: 筻口镇 | C89: 明星村 | D89: 799 | E89: 1386 | F89: 3300 | G89: 3500 | H89: 明星片十组道路拓宽 | I89: 9 | J89: 明星片十组双龙公墓道路260米长，拓宽3米，修建基脚长260米，宽0.4米，高0.5米，挡土墙长260米，宽0.4米，高0.6米，最后进行土方回填进行压实。 | K89: 260米道路拓宽 | L89: 30000 | M89: 4500 | P89: 47042 | Q89: 81542 | R89: 2424.12.5
A90: 84 | B90: 筻口镇 | C90: 游港村 | D90: 1135 | E90: 2750 | F90: 3616 | G90: 4290 | H90: 游港片雷公坡上塘维修改造 | I90: 10 | J90: 雷公坡上下塘\进行清淤，除障和塘堤夯实整修。 | K90: 2个堰塘 | L90: 70000 | M90: 2000 | P90: 10600 | Q90: 82600 | R90: 2024.4.26
A91: 85 | B91: 筻口镇 | C91: 西冲村 | D91: 926 | E91: 1852 | F91: 3068 | G91: 3174 | H91: 西冲片白家坡姚咀垅道路护砌工程 | I91: 46 | J91: 西冲片白家坡姚咀垅道路急弯，土方长900米，土方宽24米，高8米，8640立方米。片石护砌。 | K91: 8640立方米护砌 | L91: 240000 | M91: 6900 | P91: 61900 | Q91: 308800 | R91: 2024.10.23
A92: 86 | B92: 筻口镇 | C92: 朱仑村 | D92: 1246 | E92: 2136 | F92: 3831 | G92: 4678 | H92: 朱仑村牌头片四组机耕路维修 | I92: 25 | J92: 牌头片四组机耕路维修,维修硬化后路面长190米、宽3.0米、高18厘米并安装了一个涵管 | K92: 190米机耕路维修 | L92: 30000 | M92: 7250 | P92: 22720 | Q92: 59970 | R92: 2024.9.15
A93: 87 | B93: 麻塘 | C93: 金垅村 | D93: 1266 | E93: 2458 | F93: 4515 | G93: 7850 | H93: 王家组道路广场硬化项目 | I93: 230 | J93: 平整固基道路广场面积2442.65平方米，C30混凝土硬化道路20公分，广场15公分，两侧道路与相邻地坪找平 | K93: 硬化道路422.7米，广场2442.65平方 | L93: 200,000 | P93: 32000 | Q93: 232000 | R93: 2024.10.5
A94: 88 | B94: 麻塘 | C94: 金垅村 | D94: 1266 | E94: 2458 | F94: 4515 | G94: 7850 | H94: 费家组道路建设项目 | I94: 155 | J94: 费家组道路2650平方铺设5公分厚沥青，道路两侧划定标线 | K94: 白改黑2650平方 | L94: 160,000 | P94: 30000 | Q94: 190000 | R94: 2024.10.10
A95: 89 | B95: 麻塘 | C95: 畔湖新村 | D95: 1131 | E95: 1926 | F95: 3965 | G95: 4803.15 | H95: 兴旺至新庄组连接道路硬化建设 | I95: 0 | J95: 道路硬化全长约320米，路面硬化均宽4.05米，硬化厚度0.2米，整体为C30混凝土结构，含路基清理及垫层夯实平整，路肩护理，路面压槽养护等 | K95: 道路硬化320米 | L95: 60,000 | P95: 123400 | Q95: 183400 | R95: 2024.11.26
A96: 90 | B96: 麻塘 | C96: 畔湖新村 | D96: 1131 | E96: 1926 | F96: 3965 | G96: 4803.15 | H96: 南渍堤处险加固 | I96: 0 | J96: 邓家组水塘护砌全长约121米，用机械整理堤干，全面铺设预制板（规格：长121米，高2米）护坡，并用水泥勾缝，堤面硬化全长约138米，宽约1米，硬化厚度0.08米，并安装304不锈钢护栏，高1米。 | K96: 水塘护砌121米 | L96: 200,000 | P96: 1780000 | Q96: 1980000 | R96: 2024.9.1
A97: 91 | B97: 麻塘 | C97: 麻塘村 | D97: 1162 | E97: 2320 | F97: 3871 | G97: 6730 | H97: 黎家组旅游路白改黑工程 | I97: 192 | J97: 从细屋组处铺设沥青、白改黑1800米，面积8000平方米、厚5CM | K97: 白改黑1800米8000平方米 | L97: 200,000 | P97: 394000 | Q97: 594000 | R97: 2024.10.1
A98: 92 | B98: 麻塘 | C98: 麻塘村 | D98: 1162 | E98: 2320 | F98: 3871 | G98: 6730 | H98: 新建组进组道路白改黑工程 | I98: 110 | J98: 从毛麻路连接处沥青进组，白改黑面积1668.5平方米，厚5CM。 | K98: 白改黑400米1668.5平方米 | L98: 60,000 | P98: 86200 | Q98: 146200 | R98: 2024.10.15
A99: 93 | B99: 麻塘 | C99: 东风村 | D99: 962 | E99: 1900 | F99: 3073 | G99: 6101 | H99: 新建组白改黑工程 | I99: 65 | J99: 李家咀道路拓宽平均约2.7米，大约1000平方，挖机开挖平整，道路混凝土硬化 | K99: 拓宽硬化260米 | L99: 80,000 | P99: 6700 | Q99: 86700 | R99: 2024.10.22
A100: 94 | B100: 荣家湾镇 | C100: 友爱村 | D100: 1271 | E100: 2080 | F100: 3850 | G100: 6200 | H100: 吴道清通组道路拓宽白改黑工程 | I100: 100 | J100: 吴道清通组道路拓宽长约100米，面积500余平方；白改黑长约495米，面积2170.16平方。 | K100: 白改黑100米495米2170.16平方 | L100: 130,000 | M100: 20000 | N100: 30859 | Q100: 180859 | R100: 2024.12.20
A101: 95 | B101: 荣家湾镇 | C101: 岳武村 | D101: 1151 | E101: 1230 | F101: 4320 | G101: 3160 | H101: 岳武村道路拓宽修补工程 | I101: 100 | J101: 岳武片至共同片主干道路拓宽，全长3000多米，平均拓宽1.5米。 | K101: 拓宽修补3000米 | L101: 100000 | M101: 20000 | N101: 237000 | Q101: 357000 | R101: 2024.11.3
A102: 96 | B102: 荣家湾镇 | C102: 城东村 | D102: 2010 | E102: 2180 | F102: 6380 | G102: 2630 | H102: 月东片隋家屋路面拓宽工程 | I102: 50 | J102: 月东片隋家屋路面拓宽硬化用混凝土约316立方；地坪硬化约108.8立方。 | K102: 路面拓宽800米 | L102: 40000 | M102: 10000 | N102: 200000 | Q102: 250000 | R102: 2024.11.1
A103: 97 | B103: 荣家湾镇 | C103: 六合垸村 | D103: 1151 | E103: 1230 | F103: 4320 | G103: 3160 | H103: 六合片三组山塘清淤护砌工程 | I103: 50 | J103: 六合片三组上下两塘清淤护砌，上塘塘堤硬化，长约40米、宽约2.7米。塘堤护栏维修改造。 | K103: 2个堰塘清淤护砌 | L103: 50000 | M103: 10000 | N103: 42000 | Q103: 102000 | R103: 2024.11.20
A104: 98 | B104: 荣家湾镇 | C104: 荣鹿新村 | D104: 902 | E104: 600 | F104: 3668 | G104: 3360 | H104: 星火片彭家庄道路硬化工程 | I104: 150 | J104: 星火片彭家庄道路硬化，全长793米。主干路长265米，三条支路长528米。 | K104: 793米道路硬化 | L104: 200000 | M104: 30000 | N104: 75000 | Q104: 305000 | R104: 2024.10.17
A105: 99 | B105: 荣家湾镇 | C105: 欣荣村 | D105: 1022 | E105: 1728 | F105: 4767 | G105: 1700 | H105: 杰四欧里家山机耕路建设工程 | I105: 100 | J105: 荒山开路平整压实长约2900米，及其附属工程 | K105: 2900米机耕路 | L105: 120000 | M105: 20000 | N105: 62600 | Q105: 202600 | R105: 2024.7.2
A106: 100 | B106: 荣家湾镇 | C106: 欣荣村 | D106: 1022 | E106: 1728 | F106: 4767 | G106: 1700 | H106: 东庄片杰四欧庄上组门前塘取淤护砌工程 | I106: 50 | J106: 塘内取淤1287立方；砖护砌54立方；混凝土护砌及堤面硬化28.7立方；塘围护栏90平方。 | K106: 1个堰塘取淤1287立方 | L106: 50000 | M106: 10000 | N106: 21000 | Q106: 81000 | R106: 2024.7.2
A107: 101 | B107: 荣家湾镇 | C107: 兴园村 | D107: 1005 | E107: 840 | F107: 3828 | G107: 2373 | H107: 兴园村兰侯家道路提质改造工程 | I107: 175 | J107: 兴园村兰侯家道路硬化白改黑，全长1000米，平均拓宽1.5米，厚0.2米。 | K107: 1000米道路硬化 | L107: 170000 | M107: 35000 | N107: 100000 | P107: 45000 | Q107: 350000 | R107: 2024.8.4
A108: 102 | B108: 荣家湾镇 | C108: 文发村 | D108: 850 | E108: 960 | F108: 3685 | G108: 800 | H108: 三塘片对门山开荒复耕工程 | I108: 80 | J108: 大挖机清表；大挖机开荒；树根清理销毁；大造抗旱水井及其他设施。 | K108: 开荒78亩 | L108: 60000 | M108: 12000 | N108: 22000 | Q108: 94000 | R108: 2024.11.10
A109: 103 | B109: 荣家湾镇 | C109: 公诚村 | D109: 1020 | E109: 2630 | F109: 3750 | G109: 6520 | H109: 富强片主路扩宽硬化工程 | I109: 128 | J109: 富强片杨五庙至金星小学主路长622米，拓宽硬化。 | K109: 扩宽硬化622米 | L109: 130000 | M109: 27100 | P109: 35940 | Q109: 193040 | R109: 2024.9.26
A110: 104 | B110: 荣家湾镇 | C110: 牛皋村 | D110: 1085 | E110: 2180 | F110: 4320 | G110: 7630 | H110: 牛皋片贺耕九机耕路硬化工程 | I110: 150 | J110: 牛皋片贺耕九机耕路长约1350米；宽3米；厚0.2米。 | K110: 机耕路硬化1350米 | L110: 160000 | M110: 30000 | N110: 60000 | P110: 19400 | Q110: 269400 | R110: 2024.7.1
A111: 105 | B111: 荣家湾镇 | C111: 荣鹿新村 | D111: 902 | E111: 600 | F111: 3668 | G111: 3360 | H111: 华群片七组通组道路硬化工程 | I111: 100 | J111: 华群片通组道路长约800米；宽3.5米；厚0.2米。 | K111: 道路硬化800米 | L111: 80000 | M111: 20000 | N111: 80000 | P111: 8800 | Q111: 188800 | R111: 2024.9.12
A112: 106 | B112: 张谷英镇 | C112: 大峰村 | D112: 275 | E112: 405 | F112: 1029 | G112: 628 | H112: 大峰村金西片主干道路提质改造工程 | I112: 75 | J112: 金西片主干道路段长660米，宽5米，改造后路面及分路口铺设AC-13中粒改性沥青，厚度为5.5cm。 | K112: 道路白改黑660米3300平方米 | L112: 170000 | M112: 25050 | N112: 23585 | Q112: 218635 | R112: 2024.7..10
A113: 107 | B113: 张谷英镇 | C113: 大峰村 | D113: 275 | E113: 405 | F113: 1029 | G113: 628 | H113: 大峰村金西片主干道路拓宽硬化工程 | I113: 75 | J113: 金西片主干道路段长660米，原路面宽均为3.5米，拓宽硬化至5米后，两边新建20cm宽排水沟。 | K113: 道路硬化660米 | L113: 130000 | M113: 21300 | N113: 15630 | Q113: 166930 | R113: 2024.7.10
A114: 108 | B114: 张谷英镇 | C114: 大明山村 | D114: 599 | E114: 1200 | F114: 2373 | G114: 483.9 | H114: 大明山寺连接道路硬化 | I114: 149 | J114: 将大明山村连接道路长520米，宽3.5米的道路硬化。 | K114: 道路硬化520米 | L114: 170000 | M114: 43300 | O114: 8500 | Q114: 221800 | R114: 2024.10.25
A115: 109 | B115: 张谷英镇 | C115: 倒溪村 | D115: 40 | E115: 54 | F115: 2054 | G115: 450 | H115: 倒溪村水渠疏通及护砌项目 | I115: 50 | J115: 将倒溪村师堂片仙人组275米长进行疏通、护砌。 | K115: 水渠疏通护砌275米 | L115: 160000 | M115: 18100 | P115: 29900 | Q115: 208000 | R115: 2024.10.5
A116: 110 | B116: 张谷英镇 | C116: 风水村 | D116: 1456 | E116: 2160 | F116: 4884 | G116: 4863 | H116: 风水村和美乡村屋场升级改造建设项目 | I116: 120 | J116: 对全村四个重要屋场“脏、乱、差”进行屋场改造整治，兰陵勘屋组屋场硬化265平方，新改组屋场护砌169立方，寺湾片丁家里屋场520平方，十美片油铺组新建挡土墙141立方，大桥片五六组连接处新建挡土墙49方，郭塝里坟山处渠道护砌86立方。 | K116: 屋场硬化785平方、护砌396立方 | L116: 150000 | M116: 30750 | N116: 10000 | P116: 27986 | Q116: 218736 | R116: 2024.10.1
A117: 111 | B117: 张谷英镇 | C117: 莲花湖村 | D117: 738 | E117: 1425 | F117: 2319 | G117: 1019 | H117: 五星组道路拓宽 | I117: 75 | J117: 项目位于大坳片五星组上渠道处，对该处道路急弯陡坡拉直拓宽（驳岸护砌长45米*平均高6.5米，平均宽1.8米；混凝土硬化长45米，高7米的三角形路面。 | K117: 驳岸护砌526.5立方 | L117: 140000 | M117: 18750 | N117: 51530 | Q117: 210280 | R117: 2024.10.9
A118: 112 | B118: 张谷英镇 | C118: 松树村 | D118: 869 | E118: 1276 | F118: 2887 | G118: 760 | H118: 向阳片白井洞李泽民屋前港墈护砌项目 | I118: 80 | J118: 向阳片白井洞李泽民屋前港墈护砌，护砌长150米，宽1米，高4米。 | K118: 港墈护砌600立方米 | L118: 100000 | M118: 22000 | N118: 10000 | P118: 93130 | Q118: 225130 | R118: 2024.9.1
A119: 113 | B119: 张谷英镇 | C119: 大峰村 | D119: 275 | E119: 405 | F119: 1028 | G119: 628 | H119: 大峰村江南片道路提质改造工程 | I119: 80 | J119: 南片东头组至新屋组道路340米，提质改造后路面及分路口铺设AC-13中粒改性沥青，厚度为5.5cm。 | K119: 白改黑340米1700平方米 | L119: 160000 | M119: 22150 | N119: 15900 | Q119: 198050 | R119: 2024.11.25
A120: 114 | B120: 张谷英镇 | C120: 渭洞村 | D120: 991 | E120: 1240 | F120: 3745 | G120: 3500 | H120: 群英港新塘年段港墈护砌建设项目 | I120: 70 | J120: 群英港新塘年段港墈护砌576立方 | K120: 港磡护砌576立方 | L120: 140000 | M120: 18500 | P120: 23020 | Q120: 181520 | R120: 2024.10.10 | XEZ120: =SUBTOTAL(9,A120:XEY120) -> 191180
A121: 115 | B121: 张谷英镇 | C121: 天龙村 | D121: 1505 | E121: 2230 | F121: 5388 | G121: 1487 | H121: 袁家里田磡护砌建设项目 | I121: 50 | J121: 袁家里田磡护砌长96米、高4米、宽1.2米共计460.8个立方，护砌平整，底部用钢筋护基 | K121: 田磡护砌460.8立方 | L121: 120000 | M121: 14500 | P121: 12956 | Q121: 147456 | R121: 2024.9.30
A122: 116 | B122: 杨林镇 | C122: 杨林街村 | D122: 1735 | E122: 3568 | F122: 5160 | G122: 6600 | H122: 奎星道路硬化项目 | I122: 150 | J122: 采用挖机路基清基，打驳岸24米长*60公分高*60公分宽，上山路全程采用水泥砂石硬化厚度20公分，全长447米，平均路面宽度4.7米。 | K122: 道路硬化447米 | L122: 170000 | M122: 39000 | N122: 3000 | P122: 2200 | Q122: 214200 | R122: 2024.10.20
A123: 117 | B123: 杨林镇 | C123: 尚书村 | D123: 1206 | E123: 2657 | F123: 3976 | G123: 3883 | H123: 罗家桥拆除重建 | I123: 140 | J123: 旧桥拆除重建，桥墩护体浆砌石护砌 | K123: 12米桥梁1座 | L123: 140000 | M123: 32500 | N123: 10000 | P123: 5000 | Q123: 187500 | R123: 2024.10.1
A124: 118 | B124: 杨林镇 | C124: 花果园村 | D124: 877 | E124: 2314 | F124: 3560 | G124: 3500 | H124: 东塘组茶坡塘清淤护砌 | I124: 50 | J124: 山塘清淤面积7亩，基脚混凝土27立方，钢筋1吨，护砌38立方，淤泥外运800立方，水沟长9米，30涵管8米。 | K124: 清淤护砌堰塘1个 | L124: 60000 | M124: 13000 | N124: 6000 | P124: 3000 | Q124: 82000 | R124: 2024.11.26
A125: 119 | B125: 杨林镇 | C125: 花果园村 | D125: 877 | E125: 2314 | F125: 3560 | G125: 3500 | H125: 沈塘组自来水安装 | I125: 30 | J125: 90#PE水管 185米，75#PE水管600米，开挖、回填900米，水泥路破碎及修复75米，止水阀开关及配件3000元。 | K125: 饮水管线800米 | L125: 60000 | M125: 9000 | N125: 3000 | P125: 3000 | Q125: 75000 | R125: 2024.10.22
A126: 120 | B126: 杨林镇 | C126: 城山舟村 | D126: 1101 | E126: 2860 | F126: 5260 | G126: 4800 | H126: 条屋组道路硬化 | I126: 170 | J126: 将条屋组道路进行硬化（道路全长600米，宽2.5米，厚0.2米）。 | K126: 道路硬化600米 | L126: 170000 | M126: 37000 | N126: 10000 | O126: 3000 | P126: 3000 | Q126: 223000 | R126: 2024.10.15
A127: 121 | B127: 杨林镇 | C127: 王安村 | D127: 1756 | E127: 4020 | F127: 5760 | G127: 2981 | H127: 杨林小镇塌方道路维修 | I127: 160 | J127: 道路全长150米，土方外运5400立方米，碾压平整5400立方米，碾压平整5400立方米，浆砌石313.5立方米。 | K127: 道路维修150米 | L127: 160000 | M127: 38000 | N127: 45000 | P127: 15500 | Q127: 258500 | R127: 2024.9.25
A128: 122 | B128: 杨林镇 | C128: 姑桥村 | D128: 901 | E128: 2585 | F128: 3692 | G128: 2727 | H128: 水毁道路维修 | I128: 75 | J128: 姑桥村水毁道路进行维修，山体滑坡清理3400立方，道路硬化610米长，宽4米。该工程共投入23.18万元。 | K128: 道路维修610米 | L128: 200000 | M128: 18000 | N128: 10000 | P128: 3800 | Q128: 231800 | R128: 2024.7.15
A129: 123 | B129: 杨林镇 | C129: 姑桥村 | D129: 901 | E129: 2585 | F129: 3692 | G129: 2727 | H129: 马家塘维修 | I129: 30 | J129: 将马家冲塘清淤提坎补土后加固硬化，修好溢洪口 | K129: 堰塘1个2000立方 | L129: 30000 | M129: 9000 | N129: 6400 | P129: 1800 | Q129: 47200 | R129: 2024.11.1
A130: 124 | B130: 杨林镇 | C130: 溪源村 | D130: 744 | E130: 2385 | F130: 3180 | G130: 2980 | H130: 坪山组排水沟驳岸护砌 | I130: 83 | J130: 排水沟长468米，深0.8米，驳岸448立方米，长281米，高 米，底宽1米，面宽0.6米。 | K130: 浆砌石护砌448立方米涵洞预埋468米 | L130: 200000 | M130: 22000 | N130: 10000 | P130: 5000 | Q130: 237000 | R130: 2024.1
A131: 125 | B131: 中洲乡 | C131: 中洲村 | D131: 88 | E131: 160 | F131: 260 | G131: 442 | H131: 天灯片道路硬化 | I131: 225 | J131: 对天灯片350米道路进行硬化，共1200平方 | K131: 350米共1200平方 | L131: 142600 | M131: 45000 | Q131: 187600 | R131: 2024.11.1
A132: 126 | B132: 中洲乡 | C132: 中洲村 | D132: 73 | E132: 140 | F132: 248 | G132: 420 | H132: 十三号型机耕桥建设 | I132: 150 | J132: 对原有简易机耕桥重建一座十三号型机耕桥 | K132: 机耕桥1座 | L132: 102600 | M132: 30000 | Q132: 132600 | R132: 2024.11.1
A133: 127 | B133: 中洲乡 | C133: 中洲村 | D133: 80 | E133: 135 | F133: 230 | G133: 390 | H133: 坪垸四组道路硬化 | I133: 80 | J133: 对135米道路进行硬化。 | K133: 135米道路硬化 | L133: 54800 | M133: 16000 | Q133: 70800 | R133: 2024.11.1
A134: 128 | B134: 中洲乡 | C134: 宝塔村 | D134: 985 | F134: 3222 | G134: 4836 | H134: 宝塔片山塘维修 | I134: 400 | J134: 拆除栏杆、清淤、护砌、铺管、路面硬化 | K134: 整修堰塘1个 | L134: 200000 | M134: 60000 | P134: 13400 | Q134: 273400 | R134: 2024.11.21
A135: 129 | B135: 中洲乡 | C135: 宝塔村 | D135: 985 | F135: 3222 | G135: 4836 | H135: 红旗九组道路维修 | I135: 200 | J135: 路基平整1568.5㎡、铺设碎石片1323.6㎡、路面硬化1323.6㎡、拆除路面18㎡、埋设PE300管6米.路肩土78m3. | K135: 路面硬化1323.6㎡ | L135: 100000 | M135: 30000 | P135: 66100 | Q135: =SUBTOTAL(9,L135:P135) -> 196100 | R135: 2024.12.12
A136: 130 | B136: 中洲乡 | C136: 三江村 | D136: 1650 | E136: 1900 | F136: 4650 | G136: 7347 | H136: 灌溉渠道硬化衬砌 | I136: 180 | J136: 320米灌溉渠道硬化衬砌 | K136: 320米渠道 | L136: 120000 | M136: 36000 | Q136: 156000 | R136: 2024.10.5
A137: 131 | B137: 中洲乡 | C137: 平江河村 | D137: 1150 | E137: 1900 | F137: 4015 | G137: 7067 | H137: 十八组机耕路建设 | I137: 120 | J137: 十八组1500米机耕路建设 | K137: 1500米机耕路 | L137: 80000 | M137: 24000 | Q137: 104000 | R137: 2024.12.2
A138: 132 | B138: 中洲乡 | C138: 巴陵村 | D138: 630 | E138: 2300 | F138: 3072 | G138: 4500 | H138: 青镜片道路维修 | I138: 110 | J138: 巴陵村青镜片一组410米道路白改黑，铺设沥青1435㎡，厚度8㎝。 | K138: 410米1435平方米白改黑 | L138: 80000 | M138: 20500 | Q138: 100500 | R138: 2024.11.1
A139: 133 | B139: 鹿角区域 | C139: 荣湾湖村 | D139: 1687 | E139: 1930 | F139: 4829 | G139: 3800 | H139: 兴无片道路拓宽改造建设工程 | I139: 100 | J139: 道路拓宽硬化全长848米，破除砼路面和地坪155米，面积1390平方米；厚度0.2米，拓宽路面与原路面钢筋插入连接。 | K139: 道路硬化848米 | L139: 100000 | M139: 20000 | N139: 0 | O139: 0 | P139: 72935 | Q139: 192935 | R139: 2024.9.23
A140: 134 | B140: 鹿角区域 | C140: 荣湾湖村 | D140: 1687 | E140: 1930 | F140: 4829 | G140: 3800 | H140: 荣湾湖村孙坞片胥明屋大塘清淤护彻及排污管道建设 | I140: 150 | J140: 铺埋500#污水管300米，清除淤泥6000立方米，片石护砌长80米，下底1.5米宽，高2米，上底1米宽，高1.5米，共计360立方米。 | K140: 整修堰塘1个 | L140: 150000 | M140: 30000 | N140: 0 | O140: 0 | P140: 114600 | Q140: 294600 | R140: 2024.11.12
A141: 135 | B141: 鹿角区域 | C141: 鹿角村 | D141: 1092 | E141: 2180 | F141: 4320 | G141: 4630 | H141: 鹿角村杨茂片道路拓宽硬化 | I141: 50 | J141: 杨茂片道路硬化长约452米、拓宽1.5米、厚0.2米。 | K141: 452米道路硬化 | L141: 50000 | M141: 10000 | N141: 10000 | O141: 0 | P141: 3650 | Q141: 73650 | R141: 2024.7.1
A142: 136 | B142: 鹿角区域 | C142: 鹿角村 | D142: 1092 | E142: 2180 | F142: 4320 | G142: 4630 | H142: 斗坡山基础设施建设 | I142: 150 | J142: 将斗坡山进行通水通电，并把道路铺垫,道路平整4000米，机电井安装3处。 | K142: 道路平整4000米，机电井安装3处 | L142: 200000 | M142: 42000 | N142: 0 | O142: 0 | P142: 47000 | Q142: 289000 | R142: 2024.3.25

Sheet 申报表 (2)
A1: 岳阳县2024年度农村综合改革一事一议财政奖补项目汇总表
Q2: 单位：户、人、亩、元
A3: 序号 | B3: 村基本情况 | H3: 项目名称 | I3: 筹资人数 | J3: 项目建设内容 | K3: 工程量 | L3: 资金安排情况 | S3: 开工日期 | T3: 竣工日期 | U3: 资金支付时间 | V3: 是否超预算 | W3: 备注
B4: 乡镇 | C4: 村 名 | D4: 户数 | E4: 劳动力 | F4: 人口数 | G4: 耕地面积 | L4: 财政奖补 | O4: 集体收入 | P4: 社会捐助 | Q4: 其他收入 | R4: 总金额
L5: 上级 | M5: 本级
A6: 合计 | L6: =SUM(L7:L142) -> 17120000 | M6: 1400000 | N6: =SUM(L6:M6) -> 18520000 | O6: 4137627 | P6: 1775540 | Q6: 9644859 | R6: 52598026
A7: 1 | B7: 月田镇 | C7: 月田村 | D7: 1102 | E7: 1240 | F7: 3649 | G7: 1904 | H7: 月田村黎国公路路基拓宽 | I7: 50 | J7: 孙家片黎家坳至稻田村国庆片道路拓宽2米 | K7: 430米道路拓宽 | L7: 200000 | N7: =SUM(L7:M7) -> 200000 | O7: 16000 | P7: 40000 | Q7: 2300 | R7: =SUBTOTAL(9,L7:Q7) -> 458300 | S7: 2024.6.10 | T7: 2024.7.30 | U7: 2024.4.15 | V7: 未超
A8: 2 | B8: 月田镇 | C8: 花苗村 | D8: 856 | E8: 1240 | F8: 3289 | G8: 2178 | H8: 白石至徐家山新修公路工程 | I8: 100 | J8: 白石至徐家山全线2000米，拓宽至7米 | K8: 2000米道路拓宽 | L8: 150000 | N8: 150000 | O8: 21600 | P8: 0 | Q8: 50000 | R8: 371600 | S8: 2024.8.1 | T8: 2024.10.20 | U8: 2024.12.4 | V8: 未超
A9: 3 | B9: 月田镇 | C9: 红光村 | D9: 580 | E9: 980 | F9: 2800 | G9: 2409 | H9: 万山至湖北石溪公路硬化 | I9: 200 | J9: 万山至湖北石溪公路长630米，宽3.5米生线硬化 | K9: 公路硬化2205平方米 | L9: 200000 | N9: 200000 | O9: 50000 | P9: 35000 | Q9: 500000 | R9: 985000 | S9: 2024.7.19 | T9: 2024.8.31 | U9: 2024.12.3 | V9: 未超
A10: 4 | B10: 月田镇 | C10: 月东村 | D10: 501 | E10: 816 | F10: 1792 | G10: 126 | H10: 楼板桥拆除重建 | I10: 85 | J10: 拆除月形片楼板桥，重建现浇板桥 | K10: 桥梁全长9.42M，宽6.5M。 | L10: 150000 | N10: 150000 | O10: 70000 | P10: 0 | Q10: 200000 | R10: 570000 | S10: 2024.8.20 | T10: 2024.10.30 | U10: 2024.12.5 | V10: 未超
A11: 5 | B11: 月田镇 | C11: 铁山湖 | D11: 1140 | E11: 2054 | F11: 4160 | G11: 1279 | H11: 立元至枫树龙山道路硬化 | I11: 313 | J11: 铁山湖双江木文组1.68公里全线硬化 | K11: 公路硬化1.68公里 | L11: 200000 | N11: 200000 | O11: 100000 | P11: 20000 | Q11: 65500 | R11: 585500 | S11: 2024.9.29 | T11: 2024.10.29 | U11: 2024.12.3 | V11: 未超
A12: 6 | B12: 月田镇 | C12: 改港 | D12: 720 | E12: 1250 | F12: 3286 | G12: 2112 | H12: 谢家石磡护砌 | I12: 204 | J12: 谢家组长81米，高4.5米宽1.3米石磡护砌 | K12: 公路护砌465立方米 | L12: 180000 | N12: 180000 | O12: 0 | P12: 0 | R12: 360000 | S12: 2024.5.18 | T12: 2024.6.18 | U12: 2024.12.3 | V12: 未超
A13: 7 | B13: 月田镇 | C13: 立新 | D13: 986 | E13: 1568 | F13: 3886 | G13: 1994 | H13: 上庄片余家塅新建桥梁工程 | I13: 300 | J13: 重建余家段新建 | K13: 桥梁长3.5米，宽4.5米，高3米 | L13: 100000 | N13: 100000 | R13: 200000 | S13: 2024.6.10 | T13: 2024.7.10 | U13: 2024.12.28 | V13: 未超
A14: 8 | B14: 公田镇 | C14: 大塅村 | D14: 789 | E14: 1078 | F14: 2265 | G14: 1575 | H14: 新来组连接路拓宽硬化工程 | I14: 90 | J14: 路基拓宽及平整：长160米，平均拓宽3米，路面硬化：第一段长71米，宽3.8米路面硬化：第二段长90米，宽4.8米 | K14: 160米道路拓宽硬化 | L14: 80000 | N14: 80000 | Q14: 20000 | R14: 180000 | S14: 2024.9 | T14: 2024.11 | U14: 2024.11.25 | V14: 未超
A15: 9 | B15: 公田镇 | C15: 东淇村 | D15: 639 | E15: 1328 | F15: 2590 | G15: 1700 | H15: 白元片道路拓宽硬化 | I15: 100 | J15: 白元片道路道路全长2.2公里，驳岸护砌、拓宽硬化 | K15: 2200米道路拓宽硬化 | L15: 80000 | N15: 80000 | Q15: 180000 | R15: 340000 | S15: 2024.10.6 | T15: .2024.10.15 | U15: 2024.12.28 | V15: 未超
A16: 10 | B16: 公田镇 | C16: 东新村 | D16: 609 | E16: 1150 | F16: 2369 | G16: 2100 | H16: 东新村S308线西岸、洋石至东岸组路段水沟维修 | I16: 300 | J16: 水沟全长310米，高2.5米，宽1.2米，炮机截割，挖机开挖、回填，底混泥土垫底层，暗水沟安装高压涵筒，水泥灌缝、盖面；明水沟免烧砖砌墙。渣土碎石转运。 | K16: 310米水沟维修 | L16: 20000 | M16: 100000 | N16: 120000 | Q16: 12850 | R16: 252850 | S16: 2024.11.20 | T16: 2024.12.20 | U16: 2024.12.26 | V16: 未超
A17: 11 | B17: 公田镇 | C17: 飞云村 | D17: 848 | E17: 1624 | F17: 3050 | G17: 2632 | H17: 飞云村羊楼片东坡组公路拓宽 | I17: 200 | J17: 东坡组路段276米道路进行拓宽至7米以上，其中动用挖机地段176米，平均高度5米左右，宽4米 | K17: 276米道路拓宽 | L17: 80000 | M17: 100000 | N17: 180000 | Q17: 21500 | R17: 381500 | S17: 2024.10.10 | T17: 2024.11.15 | U17: 2024.11.18 | V17: 未超
A18: 12 | B18: 公田镇 | C18: 港口村 | D18: 960 | E18: 2300 | F18: 3677 | G18: 4254 | H18: 港口村斜南组沟渠维修 | I18: 100 | J18: 沟渠长1500米，宽0.8米，深1米，U型槽衬砌，砖砌体做挡水墙，埋设涵管，挖机清沟平整。 | K18: 沟渠长1500米 | L18: 80000 | N18: 80000 | Q18: 1550 | R18: 161550 | S18: 2024.10.10 | T18: 2024.10.30 | U18: 2024.12.10 | V18: 未超
A19: 13 | B19: 公田镇 | C19: 横铺村 | D19: 759 | E19: 1195 | F19: 2998 | G19: 5840 | H19: 横铺村长头组新修便民桥、机耕路工程 | I19: 100 | J19: 新修便民桥：长8.5米，宽5米，预制板打底，钢筋扎模，混凝土盖面；桥墩：宽6米，高2.5米；新修机耕路：长800米，宽4米；挖沟：长40米，宽6米。路墈护砌，长100米,宽0.6米，高2米。 | K19: 便民桥8.5米，机耕路800米 | L19: 150000 | N19: 150000 | R19: 300000 | S19: 2024.9.10 | T19: 2024.9.30 | U19: 2024.12.18 | V19: 未超
A20: 14 | B20: 公田镇 | C20: 饶港村 | D20: 609 | E20: 1150 | F20: 2369 | G20: 2100 | H20: 新安组至徐家组道路硬化工程 | I20: 144 | J20: 饶港村新安组至徐家组道路硬化1000米 | K20: 道路硬化1000米 | L20: 180000 | N20: 180000 | Q20: 6200 | R20: 366200 | S20: 2024.11.5 | T20: 2024.11.30 | U20: 2024.1.17 | V20: 未超
A21: 15 | B21: 公田镇 | C21: 五龙桥村 | D21: 631 | E21: 1520 | F21: 2800 | G21: 2400 | H21: 石李片公共场所及入户道路硬化 | I21: 230 | J21: 石李片公共场所硬化长42米，宽35米，厚0.2米，入户道路长150m，宽4.2m，厚0.2米，总面积2100平方米。 | K21: 公共场所地坪及入户道路硬化积2100平方米 | L21: 90000 | N21: 90000 | Q21: 74000 | R21: 254000 | S21: 2024.9.25 | T21: 2024.10.24 | U21: 2024.12.5 | V21: 未超
A22: 16 | B22: 公田镇 | C22: 长安村 | D22: 921 | E22: 1678 | F22: 3348 | G22: 4840 | H22: 长安村千岁组千岁门口塘和千岁渠维修工程及新桥组大屋塘维修工程 | I22: 60 | J22: 千岁门口塘清淤扩容面积约为570立方米并淤泥外运，塘堤长25米进行硬化；千岁渠长280米，用浆砌石和砖、水泥砂浆进行硬化； 新桥组大屋塘塘堤长104米、高5.5米塘堤进行加固硬化；对未硬化60米塘提进行修缮 塘泥外运约2200立方米污泥进行清淤并外运，10米低涵改造及其他附属设施改造 | K22: 清淤约2770立方米整修水渠约384米 | L22: 150000 | N22: 150000 | R22: 300000 | S22: 2024.9.19 | T22: 2024.12.30 | U22: 2025.1.14 | V22: 未超
A23: 17 | B23: 公田镇 | C23: 公田居委会 | D23: 1402 | E23: 1150 | F23: 5242 | G23: 1704 | H23: 马安组道路拓宽硬化 | I23: 76 | J23: 全长417米，在原机耕泥路基础上拓宽1.5米。硬化宽3米，厚0.2米。需道路开挖整平硬化。砖砌24墙排水沟长35米，高0.5米。沉井一个，长1米，宽1米，高1米 | K23: 417米道路拓宽硬化 | L23: 120000 | N23: 120000 | Q23: 31403 | R23: 271403 | S23: 2024.8.10 | T23: 2024.8.25 | U23: 2025.1.17 | V23: 未超
A24: 18 | B24: 新墙镇 | C24: 高桥村 | D24: 1748 | E24: 2435 | F24: 5989 | G24: 6689 | H24: 大塘组道路建设工程 | I24: 58 | J24: 新建路基填方长382米，宽4.8米、高1.8米(平均值)②碎石基层长776米、宽3.5米、厚度0.2米(平均值)③C30砼路面(200mm厚)长776米④浆砌片石护砌长度62米、宽0.75米、 高2米，(平均值) | K24: 776米道路建设 | L24: 110000 | N24: 110000 | O24: 202121 | Q24: 88000 | R24: 510121 | S24: 2024.11.1 | T24: 2024.12.5 | U24: 2024.12.6 | V24: 未超
A25: 19 | B25: 新墙镇 | C25: 清水村 | D25: 725 | E25: 1205 | F25: 3264 | G25: 3533 | H25: 清水村新建组新建台渠 | I25: 28 | J25: 在新建组原渠道的基础上新建一条台渠，采用50、80的U型槽铺设，底平均宽0.7米，高0.6米、长 900米，包括道路清表、土方整理、开挖、硬化、U型槽铺设等。 | K25: 新建900米台渠 | L25: 100000 | N25: 100000 | O25: 1600 | Q25: 100000 | R25: 301600 | S25: 2024.11.6 | T25: 2024.12.6 | U25: 2024.12.6 | V25: 未超
A26: 20 | B26: 新墙镇 | C26: 清水村 | D26: 725 | E26: 1205 | F26: 3264 | G26: 3533 | H26: 清水村卫星组新建台渠 | I26: 30 | J26: 新建台渠，全长300米，宽12米；渠道长300米、宽0.4-0.7米、高0.6米硬化，包括道路清表、土方整理、开挖、硬化、坡面建设、涵筒铺设等。 | K26: 新建300米台渠 | L26: 100000 | N26: 100000 | Q26: 100000 | R26: 300000 | S26: 2024.10.20 | T26: 2024.11.26 | U26: 2024.12.6 | V26: 未超
A27: 21 | B27: 新墙镇 | C27: 燎原村 | D27: 1235 | E27: 2239 | F27: 4446 | G27: 5785 | H27: 燎原村方杨片老侯家门前塘清淤护砌改造 | I27: 10 | J27: 老侯家门前塘14.5亩进行整体清淤，塘堤护砌。清淤深度2米，淤泥全部外运，并对周边屋场出行道路78米进行整体加固，路面拓宽1.5米，硬化后黑化，部分周边安装大理石防护栏。 | K27: 1个堰塘整体清淤 | L27: 100000 | N27: 100000 | O27: 51185 | Q27: 280000 | R27: 531185 | S27: 2024.10.20 | T27: 2024.11.26 | U27: 2024.12.6 | V27: 未超
A28: 22 | B28: 新墙镇 | C28: 三合村 | D28: 1082 | E28: 1400 | F28: 4068 | G28: 3833 | H28: 三合村三组至四组防汛渠道清淤护砌 | I28: 24 | J28: 渠道护砌全长260米，高1.8米，面宽1.5米，浆砌石挡墙600.08立方等。 | K28: 260米渠道护砌 | L28: 100000 | N28: 100000 | O28: 26400 | Q28: 100000 | R28: 326400 | S28: 2024.10.10 | T28: 2024.10.30 | U28: 2024.12.6 | V28: 未超
A29: 23 | B29: 新墙镇 | C29: 三合村 | D29: 1082 | E29: 1400 | F29: 4068 | G29: 3833 | H29: 三合村联河片蓄水塘清淤护砌 | I29: 24 | J29: 池塘清淤外运1521.25立方，30水涵4米，40过水涵5米，M7.5浆砌石挡墙329.75立方等。 | K29: 1个堰塘清淤1521.25立方 | L29: 60000 | N29: 60000 | O29: 76161 | Q29: 40000 | R29: 236161 | S29: 2024.10.8 | T29: 2024.11.7 | U29: 2024.12.16 | V29: 未超
A30: 24 | B30: 新墙镇 | C30: 双枫村 | D30: 723 | E30: 1789 | F30: 3120 | G30: 4048 | H30: 双枫村集体经济合作社院内地坪及道路工程 | I30: 20 | J30: 院内地坪300平方米，道路680米进行硬化后铺设沥青混凝土。 | K30: 地坪300平方米680米道路硬化 | L30: 100000 | M30: 100000 | N30: 200000 | O30: 264600 | R30: 664600 | S30: 2024.10.12 | T30: 2024.11.19 | U30: 2024.12.6 | V30: 未超
A31: 25 | B31: 新墙镇 | C31: 新华村 | D31: 1484 | E31: 1400 | F31: 5025 | G31: 6120 | H31: 新黄公路至新农水库道路硬化 | I31: 23 | J31: 道路全长1200米，宽3.5米，厚20公分C30进行硬化 | K31: 1200米道路硬化 | L31: 100000 | M31: 100000 | N31: 200000 | O31: 252650 | R31: 652650 | S31: 2024.6.10 | T31: 2024.10.2 | U31: 2024.12.6 | V31: 未超
A32: 26 | B32: 新墙镇 | C32: 马形村 | D32: 659 | E32: 1529 | F32: 3166 | G32: 3200 | H32: 马形村大堰组道路建设工程 | I32: 0 | J32: 大堰组260米村级道路建设包括外借土方、人工平整、损坏路面拆除、水泥毯铺设、路面硬化。 | K32: 260米道路新建 | L32: 40000 | N32: 40000 | O32: 82047 | Q32: 40000 | R32: 202047 | S32: 2024.8.8 | T32: 2024.8.28 | U32: 2025.1.16 | V32: 未超
A33: 27 | B33: 毛田镇 | C33: 黄道村 | D33: 326 | E33: 698 | F33: 2248 | G33: 1798 | H33: 相庙组山塘护砌维修 | I33: 35 | J33: 塘外浆砌石长50米，高4米，宽（底1.4+面0.8）塘内坡浆砌石长42米，高4.5米，宽（底1.4+面0.8），塘内清淤、管道维修、土方回填等 | K33: 1个堰塘硬化 | L33: 170000 | N33: 170000 | P33: 0 | Q33: 47765 | R33: 387765 | S33: 2024.9.11 | T33: 2024.10.18 | U33: 2025.1.8 | V33: 未超
A34: 28 | B34: 毛田镇 | C34: 芭蕉村 | D34: 937 | E34: 730 | F34: 3328 | G34: 1365 | H34: 上新组道路拓宽硬化 | I34: 48 | J34: 挡土墙护砌、挖机回填、排水管预埋。 | K34: 2600米道路拓宽硬化 | L34: 140000 | N34: 140000 | P34: 40000 | Q34: 276900 | R34: 596900 | S34: 2024.7.8 | T34: 2024.8.21 | U34: 2025.1.9 | V34: 未超
A35: 29 | B35: 毛田镇 | C35: 西台村 | D35: 701 | E35: 560 | F35: 2549 | G35: 2059 | H35: 西台村村短冲组公路维修 | I35: 100 | J35: 路面800米硬化，土方开挖，回填，浆砌石墈，水沟及涵筒填埋等 | K35: 800米道路维修 | L35: 120000 | N35: 120000 | P35: 0 | Q35: 6300 | R35: 246300 | S35: 2024.8.1 | T35: 2024.8.31 | U35: 2025.1.13 | V35: 未超
A36: 30 | B36: 毛田镇 | C36: 鸣山村 | D36: 745 | E36: 895 | F36: 2845 | G36: 2800 | H36: 甘云公路路基拓宽改造 | I36: 48 | J36: 甘云公路路基拓宽改造3.4公里 | K36: 3400米道路拓宽改造 | L36: 150000 | N36: 150000 | P36: 30000 | Q36: 276900 | R36: 606900 | S36: 2024.7.10 | T36: 2024.12.30 | U36: 2024.12.13 | V36: 未超
A37: 31 | B37: 毛田镇 | C37: 道仁村 | D37: 937 | E37: 730 | F37: 2494 | G37: 831 | H37: 田河片组级路硬化 | I37: 53 | J37: 道仁村田河片组道路硬 化长度0.52公里，硬化厚度20公分 | K37: 520米道路 | L37: 160000 | N37: 160000 | P37: 0 | Q37: 39800 | R37: 359800 | S37: 2024.10.18 | T37: 2024.11.28 | V37: 未超
A38: 32 | B38: 毛田镇 | C38: 小港村 | D38: 937 | E38: 812 | F38: 2783 | G38: 1365 | H38: 村部驳堪瞳砌工程 | I38: 38 | J38: 小港村村部驳堪护砌工程长度70米，高5米，基脚1.5米，接面1米，32Pvc管5根 | K38: 护砌702立方 | L38: 170000 | N38: 170000 | P38: 0 | Q38: 6050 | R38: 346050 | S38: 2024.10.10 | T38: 2024.10.30 | U38: 2025.1.9 | V38: 未超
A39: 33 | B39: 毛田镇 | C39: 李塅村 | F39: 3086 | G39: 8200 | H39: 石门中家组桃树山塘维修 | I39: 50 | J39: ①塘内护砌长90米、高4.4米、宽1.14米 ②涵洞30#16个③挖机20小时 ④人工120天 | K39: 1个堰塘维修 | L39: 150000 | N39: =SUM(L39:M39) -> 150000 | P39: 0 | Q39: 3700 | R39: 303700 | S39: 2024.10.28 | T39: 2024.11.28 | U39: 2025.1.10 | V39: 未超
A40: 34 | B40: 毛田镇 | C40: 英桥村 | D40: 1030 | E40: 620 | F40: 3347 | G40: 1569 | H40: 英桥村桃洞片道路维修 | I40: 48 | J40: 对沙坡路11处648.8㎡、桃洞路7处553.7㎡两条路共1202.5㎡的路面进行切割、破除、清运，路面硬化。 | K40: 300米道路维修 | L40: 80000 | N40: 80000 | P40: 0 | Q40: 88900 | R40: 248900 | S40: 2024.6.8 | T40: 2024.6.28 | U40: 2024.10.25 | V40: 未超
A41: 35 | B41: 毛田镇 | C41: 卢塅村 | D41: 1098 | E41: 872 | F41: 4271 | G41: 3719.85 | H41: 公路硬化拓宽工程 | I41: 59 | J41: 土坡组公路全长480米，宽3.5米，硬化厚度20公分。 | K41: 480米道路硬化拓宽 | L41: 180000 | N41: 180000 | P41: 0 | Q41: 23640 | R41: 383640 | S41: 2024.6.18 | T41: 2024.7.18 | U41: 2025.2.13 | V41: 未超
A42: 36 | B42: 毛田镇 | C42: 毛田村 | D42: 851 | E42: 2564 | F42: 3862 | G42: 1456 | H42: 育英片道路油化 | I42: 30 | J42: 毛田村育英片x034线-庙山公路维修共油化2170㎡ | K42: 2170平方米道路油化 | L42: 200000 | N42: 200000 | P42: 169685 | Q42: 59115 | R42: 628800 | S42: 2024.10.12 | T42: 20214.11.12 | V42: 未超
A43: 37 | B43: 毛田镇 | C43: 相思村 | D43: 846 | E43: 2156 | F43: 3275 | G43: 1456 | H43: 坪石公路拓宽 | I43: 30 | J43: 路面500米硬化，土方开挖，回填，浆砌石墈，水沟及涵筒填埋等 | K43: 500平方米道路拓宽 | L43: 150000 | N43: 150000 | P43: 110000 | Q43: 33770 | R43: 443770 | S43: 2024.8.138 | T43: 2024.8.31 | V43: 未超
A44: 38 | B44: 长湖乡 | C44: 白羊村 | D44: 1002 | E44: 2500 | F44: 3310 | G44: 2848 | H44: 白羊村荷塘组道路硬化工程 | I44: 190 | J44: 路段全长480米，路宽4.2米，依据该道路实际情况需对维修路段路基进行整理，原有路基对相应路用C30混凝土硬化20公分厚。 | K44: 480米道路硬化拓宽 | L44: 190000 | N44: 190000 | Q44: 41800 | R44: 421800 | S44: 2024.10.12 | T44: 2024.11.12 | U44: 2024.12.27 | V44: 未超
A45: 39 | B45: 长湖乡 | C45: 范家村 | D45: 1167 | E45: 3040 | F45: 4120 | G45: 4952.53 | H45: 范家村高家片段内组道路硬化工程 | I45: 30 | J45: 范家村高家片段内组道路406.57米、宽均4.5米硬化 | K45: 道路406.57米硬化 | L45: 80000 | M45: 100000 | N45: 180000 | R45: 360000 | S45: 2024.10.25 | T45: 2024.11.25 | U45: 2025.1.12 | V45: 未超
A46: 40 | B46: 长湖乡 | C46: 范家村 | D46: 1167 | E46: 3040 | F46: 4120 | G46: 4952.53 | H46: 范家村范家片公路组道路护坡工程 | I46: 62 | J46: 长84.73米挡土墙护坡、水沟长104.5米护砌 | K46: 水渠104.5米，护坡84.73米工程 | L46: 90000 | M46: 100000 | N46: 190000 | R46: 380000 | S46: 2024.6.10 | T46: 2024.7.10 | U46: 2024.11.21 | V46: 未超
A47: 41 | B47: 长湖乡 | C47: 长湖村 | D47: 1350 | E47: 2860 | F47: 4892 | G47: 4800 | H47: 县工业园至千公塘路连接道路工程工程 | I47: 115 | J47: 道路全长100米、宽20米，开挖运输土方3200余方，基础路面夯实平整，底层水稳料厚23㎝（两层15㎝+18㎝）的摊铺，路面沥青11㎝厚（两层5㎝+6㎝）铺设。 | K47: 道路全长100米、宽20米。 | L47: 180000 | N47: 180000 | Q47: 252700 | R47: 612700 | S47: 2024.11.1 | T47: 2024.11.30 | U47: 2024.12.18 | V47: 未超
A48: 42 | B48: 长湖乡 | C48: 团结村 | D48: 887 | E48: 2860 | F48: 4300 | G48: 5283 | H48: 团结村大众组公路硬化工程 | I48: 50 | J48: 团结村大众组路长400米，宽4米，先将路面平整夯实，再用C30混凝土硬化20公分厚。 | K48: 道路硬化400米 | L48: 140000 | N48: 140000 | R48: 280000 | S48: 2024.7.10 | T48: 2024.8.25 | U48: 2025.1.12 | V48: 未超
A49: 43 | B49: 长湖乡 | C49: 团结村 | D49: 887 | E49: 2860 | F49: 4300 | G49: 5283 | H49: 团结村三闾片八组道路拓宽硬化工程 | I49: 180 | J49: 项目全长1公里，拓宽1.5米，厚度0.2米，窄的路基处需拓宽平整后再硬化，以承包的方式建设，全程使用C30混凝土，门口塘安装护栏。 | K49: 道路拓宽硬化1000米 | L49: 200000 | N49: 200000 | R49: 400000 | S49: 2024.6.25 | T49: 2024.7.25 | U49: 2024.12.20 | V49: 未超
A50: 44 | B50: 长湖乡 | C50: 自强村 | D50: 835 | E50: 2040 | F50: 2875 | G50: 2652.5 | H50: 村部门前路马头组路段硬化(二期) | I50: 80 | J50: 全长硬化498米，宽5米，厚0.2米，三处叉支硬化约18立方 | K50: 道路硬化498米 | L50: 180000 | N50: 180000 | Q50: 84500 | R50: 444500 | S50: 2024.6.10 | T50: 2024.7.10 | U50: 2025.1.12 | V50: 未超
A51: 45 | B51: 步仙镇 | C51: 狮山社区 | D51: 1256 | F51: 5050 | G51: 2580 | H51: 狮山居委会中学港排水渠硬化 | I51: 49 | J51: 狮山居委会中学港排水渠长度630米，需驳岸硬化646m³ | K51: 630米排水渠硬化 | L51: 200000 | N51: 200000 | Q51: 224300 | R51: 624300 | S51: 2024.6.30 | T51: 2024.9.30 | U51: 2024.10.31 | V51: 未超
A52: 46 | B52: 步仙镇 | C52: 凤凰村 | D52: 1068 | E52: 2245 | F52: 4025 | G52: 3925 | H52: 凤凰村山田源美丽屋场整治 | I52: 250 | J52: 长40米、宽25米文化广场硬化、320平方米道路硬化 | K52: 1320平方米文化广场硬化 | L52: 100000 | N52: 100000 | Q52: 150000 | R52: 350000 | S52: 2024.10.10 | T52: 2024.12.10 | U52: 2024.11.20 | V52: 未超
A53: 47 | B53: 步仙镇 | C53: 关王村 | D53: 1036 | F53: 3710 | G53: 3410 | H53: 关王村龟山至肖冲道路建设 | I53: 39 | J53: 关王村龟山至肖冲道路拓宽到4.5米，长900米、宽3.5米路面硬化 | K53: 900米道路拓宽硬化 | L53: 40000 | M53: 100000 | N53: 140000 | Q53: 301700 | R53: 581700 | S53: 2024.5.10 | T53: 2024.5.31 | U53: 2024.11.20 | V53: 未超
A54: 48 | B54: 步仙镇 | C54: 北斗岭 | D54: 884 | F54: 3631 | G54: 2740 | H54: 北斗岭村泉冲片道路拓宽硬化 | I54: 48 | J54: 泉冲片道路拓宽硬化1.5米，长2公里 | K54: 1979米道路拓宽硬化 | L54: 30000 | M54: 100000 | N54: 130000 | Q54: 316400 | R54: 576400 | S54: 2024.7.30 | T54: 2024.8.30 | U54: 2024.10.29 | V54: 未超
A55: 49 | B55: 步仙镇 | C55: 关王村 | D55: 1036 | F55: 3710 | G55: 3410 | H55: 关王村产业路建设 | I55: 33 | J55: 关王村产业路拓宽到3.5，长700米路面平整、硬化 | K55: 宽3.5米，长700米 | L55: 180000 | N55: 180000 | Q55: 127200 | R55: 487200 | S55: 2024.11.4 | T55: 2024.11.20 | U55: 2025.1.14 | V55: 未超
A56: 50 | B56: 步仙镇 | C56: 仙桥村 | D56: 1068 | E56: 1809 | F56: 4023 | G56: 3765.5 | H56: 辛淑八组道路白改黑 | I56: 35 | J56: 全长830米，宽5米，工程包括路面修补和白改黑 | K56: 白改黑830米4150平方米 | L56: 180000 | N56: 180000 | Q56: 201600 | R56: 561600 | S56: 2024.11.1 | T56: 2024.11.10 | U56: 2025.1.14 | V56: 未超
A57: 51 | B57: 步仙镇 | C57: 北斗岭 | D57: 884 | F57: 3631 | G57: 2740 | H57: 北斗岭村通景路疏通及护砌 | I57: 50 | J57: 北斗岭村通景路疏通及护砌 | K57: 通景路疏通560米，驳岸护砌160立方 | L57: 200000 | N57: 200000 | Q57: 202800 | R57: 602800 | S57: 2024.7.30 | T57: 2024.8.30 | U57: 2025.1.13 | V57: 未超
A58: 52 | B58: 步仙镇 | C58: 关王村 | D58: 1036 | F58: 3710 | G58: 3410 | H58: 沙湾至汤怀洞连接路 | I58: 30 | J58: 沙湾至汤怀洞连接路拓宽到3.5，长900米路面平整、硬化 | K58: 拓宽硬化900米 | L58: 200000 | N58: 200000 | Q58: 272100 | R58: 672100 | S58: 2024.4.8 | T58: 2024.4.28 | U58: 2025.1.30 | V58: 未超
A59: 53 | B59: 步仙镇 | C59: 新合村 | D59: 1033 | F59: 3493 | G59: 2910 | H59: 新合村付仁组道路平整硬化 | I59: 52 | J59: 付仁道路平整硬化725米 | K59: 硬化725米 | L59: 200000 | N59: 200000 | Q59: 222500 | R59: 622500 | S59: 2024.3.25 | T59: 2024.4.15 | U59: 2024.10.29 | V59: 未超
A60: 54 | B60: 黄沙街镇 | C60: 大明村 | D60: 1415 | E60: 2315 | F60: 4552 | G60: 4056 | H60: 大明村作新片墈门塘清淤维修项目工程 | I60: 100 | J60: 作新片墈门塘面积共5亩，塘底挖深40公分，泥土18000方 | K60: 1个堰塘清淤维修 | L60: 130000 | N60: 130000 | O60: 20000 | R60: 280000 | S60: 2024.10.1 | T60: 2024.11.1 | U60: 2024.11.15 | V60: 未超
A61: 55 | B61: 黄沙街镇 | C61: 黄秀村 | D61: 960 | E61: 1872 | F61: 3141 | G61: 3650 | H61: 黄秀村熊范屋至方天士连接路 | I61: 75 | J61: 熊范屋至方天士连接路项目硬化全长0.71公里、4.5米宽、0.2米厚。 | K61: 710米道路硬化 | L61: 150000 | N61: 150000 | P61: 201638 | R61: 501638 | S61: 2024.10.1 | T61: 2024.11.1 | U61: 2024.11.15 | V61: 未超
A62: 56 | B62: 黄沙街镇 | C62: 三和村 | D62: 820 | E62: 1688 | F62: 3247 | G62: 5214 | H62: 三和村中乔片村、组道太阳能路灯架设 | I62: 100 | J62: 三和村中乔片村、组道太阳能路灯架设280盏 | K62: 280盏路灯 | L62: 160000 | N62: 160000 | O62: 217000 | R62: 537000 | S62: 2024.9.20 | T62: 2024.10.25 | U62: 2024.10.25 | V62: 未超
A63: 57 | B63: 黄沙街镇 | C63: 苍坪村 | D63: 1762 | E63: 2872 | F63: 5862 | G63: 3154 | H63: 坪中八组组级道路硬化拓宽及油化工程 | I63: 150 | J63: 路面加宽油化维修120米,路面硬化为20cm厚C25水泥混凝退路面，扩宽后路面保持5m。 | K63: 120米道路拓宽及油化 | L63: 190000 | N63: 190000 | O63: 30000 | R63: 410000 | S63: 2024.8.1 | T63: 2024.8.20 | U63: 2024.11.1 | V63: 未超
A64: 58 | B64: 黄沙街镇 | C64: 黄沙村 | D64: 1235 | E64: 2895 | F64: 4056 | G64: 4251 | H64: 黄沙村树德桥危桥改造 | I64: 100 | J64: 根据村民意见，拟对该桥进行拆除重建，拟建桥梁长32米；宽5.5米。 | K64: 重建1座桥梁 | L64: 200000 | N64: 200000 | O64: 159500 | P64: 495500 | R64: 1055000 | S64: 2024.4.16 | T64: 2024.5.5 | U64: 2024.5.30 | V64: 未超
A65: 59 | B65: 黄沙街镇 | C65: 荷塘村 | D65: 1785 | E65: 1920 | F65: 3650 | G65: 3250 | H65: 荷塘村公路建设工程 | I65: 150 | J65: 荷塘村福堂片与滨湖片连接道路年久失修，路面坑洼不平。路面硬化维修1600米 | K65: 1500米道路硬化 | L65: 200000 | N65: 200000 | O65: 10000 | R65: 410000 | S65: 2024.9.10 | T65: 2024.9.30 | U65: 2024.11.26 | V65: 未超
A66: 60 | B66: 黄沙街镇 | C66: 和谐村 | D66: 1762 | E66: 2872 | F66: 4562 | G66: 3154 | H66: 和谐村友义片邹智道路拓宽公路护彻工程 | I66: 100 | J66: 友义片邹智道路拓宽公路护彻工程160米、宽4米、厚0.2米， | K66: 160米拓宽护彻 | L66: 80000 | N66: 80000 | O66: 20000 | R66: 180000 | S66: 2024.10.28 | T66: 2024.11.2 | U66: 2024.11.30 | V66: 未超
A67: 61 | B67: 新开镇 | C67: 共和村 | D67: 1226 | E67: 3000 | F67: 4730 | G67: 5000 | H67: 船山片廖家组门口塘清淤护砌 | I67: 110 | J67: 塘四周清杂，塘堤加固、护砌、护坡，修建次口，塘内淤泥清理外运 | K67: 4000米堰塘1个 | L67: 120000 | N67: 120000 | O67: 90000 | P67: 12000 | Q67: 21000 | R67: 363000 | S67: 2024.10.15 | T67: 2024.11.15 | U67: 2024.11.28 | V67: 未超
A68: 62 | B68: 新开镇 | C68: 友谊村 | D68: 867 | E68: 1500 | F68: 3390 | G68: 2935 | H68: 枫树片岩泉胡机埠拆除扩建 | I68: 18 | J68: 岩泉胡机埠拆除扩建 | K68: 整修机电1座 | L68: 110000 | N68: 110000 | O68: 40000 | P68: 6300 | Q68: 150000 | R68: 416300 | S68: 2024.9.12 | T68: 2024.10.20 | U68: 2024.12.10 | V68: 未超
A69: 63 | B69: 新开镇 | C69: 友谊村 | D69: 867 | E69: 1600 | F69: 3390 | G69: 3232 | H69: 杨华片六组机埠改扩建 | I69: 20 | J69: 杨华片六组河岸护砌80米、机埠扩建、机械设备更换 | K69: 整修机电1座 | M69: 200000 | N69: 200000 | O69: 100000 | P69: 21800 | R69: 521800 | S69: 2024.9.10 | T69: 2024.10.10 | U69: 2024.12.26 | V69: 未超
A70: 64 | B70: 新开镇 | C70: 朱砂桥村 | D70: 810 | E70: 1686 | F70: 2910 | G70: 2821 | H70: 朱砂片玉光屋场山塘水渠清淤加固 | I70: 160 | J70: 朱砂片玉光屋场山塘清淤，310米水渠用片石护砌，底涵重建 | K70: 10000立方堰塘1个 | L70: 120000 | N70: 120000 | O70: 278000 | P70: 8000 | R70: 526000 | S70: 2024.9.10 | T70: 2024.1.20 | U70: 2024.12.10 | V70: 未超
A71: 65 | B71: 新开镇 | C71: 马山村 | D71: 1230 | E71: 2643 | F71: 4686 | G71: 5324 | H71: 方元片老屋大塘维修 | I71: 139 | J71: 塘堤加固、护砌、塘内淤泥清理外运. | K71: 5000立方堰塘1个 | L71: 120000 | N71: =SUM(L71:M71) -> 120000 | Q71: 227810 | R71: =SUBTOTAL(9,L71:Q71) -> 467810 | S71: 2024.10.10 | T71: 2024.11.20 | U71: 2024.12.10 | V71: 未超
A72: 66 | B72: 新开镇 | C72: 常山村 | D72: 1224 | E72: 1800 | F72: 4104 | G72: 4136 | H72: 七星片吴明港排渍渠硬化 | I72: 110 | J72: 吴明港排渍渠道疏浚硬化1500米 | K72: 渠道疏浚硬化1500米 | L72: 200000 | N72: 200000 | O72: 100000 | P72: 10000 | Q72: 30000 | R72: 540000 | S72: 2024.9.20 | T72: 2024.10.20 | U72: 2024.12.26 | V72: 未超
A73: 67 | B73: 新开镇 | C73: 万福村 | D73: 1154 | E73: 2765 | F73: 4902 | G73: 5500 | H73: 万福片何家抗旱灌渠疏浚硬化 | I73: 100 | J73: 何家抗旱机埠至机耕路长630米破旧U型槽清基和徐彭水库下机耕路边400米破旧U型槽维修、疏浚、硬化。 | K73: 整修水渠1030米 | L73: 180000 | N73: 180000 | Q73: 81000 | R73: 441000 | S73: 2024.9.12 | T73: 2024.12.12 | U73: 2025.1.9 | V73: 未超
A74: 68 | B74: 柏祥镇 | C74: 临港村 | D74: 1056 | E74: 2243 | F74: 4373 | G74: 4312 | H74: 黄沙塝塘维修项目工程 | I74: 23 | J74: 黄沙塝塘面积约13.8亩，清理山塘内0.8m深的淤泥约7350m³；山塘塘提长80m高3.5m宽3.5m做好塘提的护坡及硬化；山塘排水底口更换； | K74: 13.8亩山塘维修 | L74: 150000 | N74: 150000 | O74: 17500 | P74: 11000 | Q74: 8146 | R74: 336646 | S74: 2024.11.5 | T74: 2024.12.22 | U74: 2025.1.13 | V74: 未超
A75: 69 | B75: 柏祥镇 | C75: 七一村 | D75: 1078 | E75: 2699 | F75: 4215 | G75: 1066 | H75: 新屋组虎形路拓宽硬化工程 | I75: 15 | J75: 该道路修路长度为376m,需进行路床整形、夯实。硬化路长376m、宽3.5m（使用C30商品砼），硬化厚度为20mm。过路涵改造长12m，会车道平整长8m，道路旁水沟砌砖长度376m（50#砖） | K75: 376米道路拓宽硬化 | L75: 170000 | N75: 170000 | O75: 1830 | P75: 1000 | Q75: 804 | R75: 343634 | S75: 2024.11.21 | T75: 2025.1.4 | U75: 2025.1.13 | V75: 未超
A76: 70 | B76: 柏祥镇 | C76: 万庆村 | D76: 1510 | E76: 2920 | F76: 5162 | G76: 4751 | H76: 蒋渭片沙塘组道路拓宽护砌及硬化工程 | I76: 24 | J76: 道路全长180米，需在原有硬化3.5米道路基础上再拓宽硬化2.5米，施工内容包含人工清障290㎡，路床整形450㎡，机械挖运土方380m³，M7.5浆砌石挡墙3处共计435m³，M7.5砖砌体水泥砌筑砂浆共计30m³，路面水泥混凝土面层450㎡。 | K76: 180米道路拓宽硬化 | L76: 180000 | N76: 180000 | O76: 18000 | P76: 9200 | Q76: 5440 | R76: 392640 | S76: 2024.10.21 | T76: 2024.12.19 | U76: 2025.1.13 | V76: 未超
A77: 71 | B77: 柏祥镇 | C77: 桑园村 | D77: 684 | E77: 1215 | F77: 2855 | G77: 3399 | H77: 四知片门头组大塘清淤护砌工程 | I77: 25 | J77: 黄沙塝塘面积约21.5亩，清理山塘内0.8m深的淤泥约10045m³；山塘塘提长80m高5m宽3m做好塘提的护坡及硬化；山塘排水底口更换。 | K77: 10045m³山塘清淤护砌 | L77: 150000 | N77: 150000 | O77: 5000 | P77: 2050 | Q77: 1500 | R77: 308550 | S77: 2024.11.13 | T77: 2024.12.30 | U77: 2025.1.13 | V77: 未超
A78: 72 | B78: 柏祥镇 | C78: 中村村 | D78: 763 | E78: 1400 | F78: 3352 | G78: 2996 | H78: 齐兴支渠堤坎护砌工程 | I78: 15 | J78: 该项目位于中村村齐寿组，对齐兴支渠进行堤坎护砌，护砌，基脚土方开挖400立方米，浆砌石护砌510方，土方回填490方。 | K78: 400立方米护砌 | L78: 180000 | N78: 180000 | O78: 1500 | P78: 800 | Q78: 700 | R78: 363000 | S78: 2024.11.10 | T78: 2024.11.24 | U78: 2025.1.13 | V78: 未超
A79: 73 | B79: 柏祥镇 | C79: 伏太村 | D79: 1192 | E79: 2699 | F79: 4578 | G79: 4500 | H79: 道路建设 | I79: 15 | J79: 该项目位于伏太村境内，对原有村级断头路面进行硬化，硬化长度为247米，厚度为20公分，宽度平均为3.5米；对原已硬化损坏路面进行重新硬化，硬化长度为：255米，厚度为20公分，宽度平均为3.5米。 | K79: 1757米道路硬化 | M79: 200000 | N79: 200000 | O79: 2500 | P79: 800 | Q79: 765 | R79: 404065 | S79: 2024.10.20 | T79: 2024.11.14 | U79: 2025.1.13 | V79: 未超
A80: 74 | B80: 柏祥镇 | C80: 柏祥村 | D80: 960 | E80: 2003 | F80: 4056 | G80: 4170 | H80: 杨姓冲Y308线道路拓宽硬化工程 | I80: 25 | J80: 道路长约1890米，沿线路基拓宽3米，路基土方回填约3780方（使用优质黄土），路面硬化宽度2.5米，厚度20公分，面积约4725平方，浆砌石挡土墙约950方，砖砌体挡土墙约74方， 过路涵道改造约140米，使用30#水泥涵管。 | K80: 1890米道路 | L80: 160000 | N80: 160000 | O80: 287533 | P80: 262267 | Q80: 237000 | R80: 1106800 | S80: 2024.11.8 | T80: 2024.12.7 | U80: 2025.1.13 | V80: 未超
A81: 75 | B81: 柏祥镇 | C81: 柏祥村 | D81: 960 | E81: 2003 | F81: 4056 | G81: 4170 | H81: 新屋组至柏祥小学道路拓宽硬化工程 | I81: 25 | J81: 道路长约1119米，沿线路基拓宽2.5米，路基土方回填约4450方，路床整形2800平方，旧水泥路面开挖350方，砾卵石垫层铺设约230方，厚度10公分，16#带肋钢筋约2200根，原路面硬化宽度2米，厚度20公分，面积约2100平方，新建路面硬化4200平方，砖砌体挡土墙约1050方，沿线过路涵道改造 | K81: 1119米道路拓宽硬化 | L81: 150000 | N81: 150000 | O81: 354396 | P81: 277000 | Q81: 166854 | R81: 1098250 | S81: 2024.11.4 | T81: 2024.12.5 | U81: 2025.1.13 | V81: 未超
A82: 76 | B82: 筻口镇 | C82: 大塘村 | D82: 1114 | E82: 2964 | F82: 3555 | G82: 4446 | H82: 刘桂片五组：庙新上塘.下塘，孙家上塘.下塘，老家上塘.下塘，杀猪塘维修。 | I82: 35 | J82: 对5个堰塘进行低涵改造、堤坝清杂、堤坝加固，塘里清污 | K82: 5个堰塘清污维修 | L82: 40000 | N82: 40000 | Q82: 32480 | R82: 112480 | S82: 2024.9.30 | T82: 2024.10.20 | U82: 2024.10.15 | V82: 未超
A83: 77 | B83: 筻口镇 | C83: 沙南新村 | D83: 1063 | E83: 3105 | F83: 4139 | G83: 6300 | H83: 山塘清淤护砌 | I83: 36 | J83: 该山塘清淤面积2.6亩及片石护砌49米，污泥外运，安全护栏安装。 | K83: 1个堰塘2.9亩清淤 | L83: 40000 | N83: 40000 | Q83: 12068 | R83: 92068 | S83: 2024.10.1 | T83: 2024.10.15 | U83: 2024.10.15 | V83: 未超
A84: 78 | B84: 筻口镇 | C84: 漆市村 | D84: 813 | E84: 2818 | F84: 3562 | G84: 2924 | H84: 漆市片泄洪道修桥及驳岸护砌 | I84: 23 | J84: 漆市片泄洪道全长2.6公里，由于渠道管理不善及年久失修导致淤泥积堵，杂草丛生严重发挥泄洪道泄洪的作用，对全渠道进行清淤。修建跨渠桥三座和多处驳岸挎塌重新修建。 | K84: 泄洪道2.6公里驳岸新修 | L84: 140000 | N84: 140000 | Q84: 39005 | R84: 319005 | S84: 2024.8.10 | T84: 2024.12.08 | U84: 2024.10.15 | V84: 未超
A85: 79 | B85: 筻口镇 | C85: 移山村 | D85: 1568 | E85: 3985 | F85: 5512 | G85: 7586 | H85: 移山村花坪片渠道硬化 | I85: 11 | J85: 全长113米渠道新建底宽50CM,G高80CM ,顶宽80CM包工包料。 | K85: 113米渠道硬化 | L85: 110000 | N85: 110000 | Q85: 24400 | R85: 244400 | S85: 2024.9.10 | T85: 2024.9.22 | U85: 2024.10.15 | V85: 未超
A86: 80 | B86: 筻口镇 | C86: 释迦寺村 | D86: 998 | E86: 2780 | F86: 4020 | G86: 6380 | H86: 刘本九组机耕路硬化 | I86: 10 | J86: 道路硬化140米，宽2.6米厚 0.2米.对16米塘堤进行硬化和护砌. | K86: 140米机耕路硬化 | L86: 40000 | N86: 40000 | Q86: 1896 | R86: 81896 | S86: 2024.7.18 | T86: 2024.7.24 | U86: 2024.10.15 | V86: 未超
A87: 81 | B87: 筻口镇 | C87: 熊市村 | D87: 1221 | E87: 2749 | F87: 3937 | G87: 5449 | H87: 熊市村保安片七组后垄塘清污护砌工程 | I87: 23 | J87: 项目对保安片七组后垄塘进行了清淤护砌，修建前山塘长35米、宽2.5米，高4米，修建后塘堤长达42米，宽4米，高5.5米，另对塘内斜坡高10.8米，长42米，厚8公分进行了护砌并安装了高低涵管。 | K87: 1个堰塘清淤护砌 | L87: 40000 | N87: 40000 | Q87: 27200 | R87: 107200 | S87: 2024.9.16 | T87: 2024.9.27 | U87: 2024.12.15 | V87: 未超
A88: 82 | B88: 筻口镇 | C88: 熊市村 | D88: 1221 | E88: 2749 | F88: 3937 | G88: 5449 | H88: 新塘片优质稻配套水利建设 | I88: 35 | J88: 山塘塘坝扫障约500平方，外坡扫障390平方后进行清淤扩容8640立方及外运，对塘坝加固并外运粘土390立方，对脚槽开挖并护砌，内塘坡用砂卵石垫层并进行护砌，对坡面外运粘土、内坡坡面、外坡进行平整，塘内修建梯阶，低涵管道安装和泄洪道修建. | K88: 1个堰塘清淤29375平方米 | L88: 100000 | N88: 100000 | Q88: 152368.72 | R88: 352368.72 | S88: 2024.7.24 | T88: 2024.8.21 | U88: 2025.1.3 | V88: 未超
A89: 83 | B89: 筻口镇 | C89: 明星村 | D89: 799 | E89: 1386 | F89: 3300 | G89: 3500 | H89: 明星片十组道路拓宽 | I89: 9 | J89: 明星片十组双龙公墓道路260米长，拓宽3米，修建基脚长260米，宽0.4米，高0.5米，挡土墙长260米，宽0.4米，高0.6米，最后进行土方回填进行压实。 | K89: 260米道路拓宽 | L89: 30000 | N89: 30000 | Q89: 47042 | R89: 107042 | S89: 2424.12.5 | T89: 2024.12.20 | U89: 2024.10.15 | V89: 未超
A90: 84 | B90: 筻口镇 | C90: 游港村 | D90: 1135 | E90: 2750 | F90: 3616 | G90: 4290 | H90: 游港片雷公坡上塘维修改造 | I90: 10 | J90: 雷公坡上下塘\进行清淤，除障和塘堤夯实整修。 | K90: 2个堰塘 | L90: 70000 | N90: 70000 | Q90: 10600 | R90: 150600 | S90: 2024.4.26 | T90: 2025.4.26 | U90: 2024.10.15 | V90: 未超
A91: 85 | B91: 筻口镇 | C91: 西冲村 | D91: 926 | E91: 1852 | F91: 3068 | G91: 3174 | H91: 西冲片白家坡姚咀垅道路护砌工程 | I91: 46 | J91: 西冲片白家坡姚咀垅道路急弯，土方长900米，土方宽24米，高8米，8640立方米。片石护砌。 | K91: 8640立方米护砌 | L91: 240000 | N91: 240000 | Q91: 61900 | R91: 541900 | S91: 2024.10.23 | T91: 2024.12.2 | U91: 2024.10.15 | V91: 未超
A92: 86 | B92: 筻口镇 | C92: 朱仑村 | D92: 1246 | E92: 2136 | F92: 3831 | G92: 4678 | H92: 朱仑村牌头片四组机耕路维修 | I92: 25 | J92: 牌头片四组机耕路维修,维修硬化后路面长190米、宽3.0米、高18厘米并安装了一个涵管 | K92: 190米机耕路维修 | L92: 30000 | N92: 30000 | Q92: 22720 | R92: 82720 | S92: 2024.9.15 | T92: 2024.9.26 | U92: 2024.10.15 | V92: 未超
A93: 87 | B93: 麻塘 | C93: 金垅村 | D93: 1266 | E93: 2458 | F93: 4515 | G93: 7850 | H93: 王家组道路广场硬化项目 | I93: 230 | J93: 平整固基道路广场面积2442.65平方米，C30混凝土硬化道路20公分，广场15公分，两侧道路与相邻地坪找平 | K93: 硬化道路422.7米，广场2442.65平方 | L93: 200,000 | N93: 200000 | Q93: 32000 | R93: 432000 | S93: 2024.10.5 | T93: 2024.11.5 | U93: 2025.1.13 | V93: 未超
A94: 88 | B94: 麻塘 | C94: 金垅村 | D94: 1266 | E94: 2458 | F94: 4515 | G94: 7850 | H94: 费家组道路建设项目 | I94: 155 | J94: 费家组道路2650平方铺设5公分厚沥青，道路两侧划定标线 | K94: 白改黑2650平方 | L94: 160,000 | N94: 160000 | Q94: 30000 | R94: 350000 | S94: 2024.10.10 | T94: 2024.10.15 | U94: 2025.1.13 | V94: 未超
A95: 89 | B95: 麻塘 | C95: 畔湖新村 | D95: 1131 | E95: 1926 | F95: 3965 | G95: 4803.15 | H95: 兴旺至新庄组连接道路硬化建设 | I95: 0 | J95: 道路硬化全长约320米，路面硬化均宽4.05米，硬化厚度0.2米，整体为C30混凝土结构，含路基清理及垫层夯实平整，路肩护理，路面压槽养护等 | K95: 道路硬化320米 | L95: 60,000 | N95: 60000 | Q95: 123400 | R95: 243400 | S95: 2024.11.26 | T95: 2024.12.16 | U95: 2025.1.16 | V95: 未超
A96: 90 | B96: 麻塘 | C96: 畔湖新村 | D96: 1131 | E96: 1926 | F96: 3965 | G96: 4803.15 | H96: 南渍堤处险加固 | I96: 0 | J96: 邓家组水塘护砌全长约121米，用机械整理堤干，全面铺设预制板（规格：长121米，高2米）护坡，并用水泥勾缝，堤面硬化全长约138米，宽约1米，硬化厚度0.08米，并安装304不锈钢护栏，高1米。 | K96: 水塘护砌121米 | L96: 100,000 | M96: 100000 | N96: 200000 | Q96: 1780000 | R96: 2180000 | S96: 2024.9.1 | T96: 2024.12.31 | U96: 2025.1.13 | V96: 未超
A97: 91 | B97: 麻塘 | C97: 麻塘村 | D97: 1162 | E97: 2320 | F97: 3871 | G97: 6730 | H97: 黎家组旅游路白改黑工程 | I97: 192 | J97: 从细屋组处铺设沥青、白改黑1800米，面积8000平方米、厚5CM | K97: 白改黑1800米8000平方米 | L97: 100,000 | M97: 100000 | N97: 200000 | Q97: 394000 | R97: 794000 | S97: 2024.10.1 | T97: 2024.11.5 | U97: 2025.1.14 | V97: 未超
A98: 92 | B98: 麻塘 | C98: 麻塘村 | D98: 1162 | E98: 2320 | F98: 3871 | G98: 6730 | H98: 新建组进组道路白改黑工程 | I98: 110 | J98: 从毛麻路连接处沥青进组，白改黑面积1668.5平方米，厚5CM。 | K98: 白改黑400米1668.5平方米 | L98: 60,000 | N98: 60000 | Q98: 86200 | R98: 206200 | S98: 2024.10.15 | T98: 2024.11.1 | U98: 2025.1.13 | V98: 未超
A99: 93 | B99: 麻塘 | C99: 东风村 | D99: 962 | E99: 1900 | F99: 3073 | G99: 6101 | H99: 新建组白改黑工程 | I99: 65 | J99: 李家咀道路拓宽平均约2.7米，大约1000平方，挖机开挖平整，道路混凝土硬化 | K99: 拓宽硬化260米 | L99: 80,000 | N99: 80000 | Q99: 6700 | R99: 166700 | S99: 2024.10.22 | T99: 2024.11.10 | U99: 2024.2.1 | V99: 未超
A100: 94 | B100: 荣家湾镇 | C100: 友爱村 | D100: 1271 | E100: 2080 | F100: 3850 | G100: 6200 | H100: 吴道清通组道路拓宽白改黑工程 | I100: 100 | J100: 吴道清通组道路拓宽长约100米，面积500余平方；白改黑长约495米，面积2170.16平方。 | K100: 白改黑100米495米2170.16平方 | L100: 130,000 | N100: 130000 | O100: 30859 | R100: 290859 | S100: 2024.12.20 | T100: 2024.12.27 | U100: 2024.12.24 | V100: 未超
A101: 95 | B101: 荣家湾镇 | C101: 岳武村 | D101: 1151 | E101: 1230 | F101: 4320 | G101: 3160 | H101: 岳武村道路拓宽修补工程 | I101: 100 | J101: 岳武片至共同片主干道路拓宽，全长3000多米，平均拓宽1.5米。 | K101: 拓宽修补3000米 | L101: 100000 | N101: 100000 | O101: 237000 | R101: 437000 | S101: 2024.11.3 | T101: 2024.11.23 | U101: 2024.12.24 | V101: 未超
A102: 96 | B102: 荣家湾镇 | C102: 城东村 | D102: 2010 | E102: 2180 | F102: 6380 | G102: 2630 | H102: 月东片隋家屋路面拓宽工程 | I102: 50 | J102: 月东片隋家屋路面拓宽硬化用混凝土约316立方；地坪硬化约108.8立方。 | K102: 路面拓宽800米 | L102: 40000 | N102: 40000 | O102: 200000 | R102: 280000 | S102: 2024.11.1 | T102: 2024.11.30 | U102: 2024.12.24 | V102: 未超
A103: 97 | B103: 荣家湾镇 | C103: 六合垸村 | D103: 1151 | E103: 1230 | F103: 4320 | G103: 3160 | H103: 六合片三组山塘清淤护砌工程 | I103: 50 | J103: 六合片三组上下两塘清淤护砌，上塘塘堤硬化，长约40米、宽约2.7米。塘堤护栏维修改造。 | K103: 2个堰塘清淤护砌 | L103: 50000 | N103: =SUM(L103:M103) -> 50000 | O103: 42000 | R103: 142000 | S103: 2024.11.20 | T103: 2024.12.2 | U103: 2024.12.24 | V103: 未超
A104: 98 | B104: 荣家湾镇 | C104: 荣鹿新村 | D104: 902 | E104: 600 | F104: 3668 | G104: 3360 | H104: 星火片彭家庄道路硬化工程 | I104: 150 | J104: 星火片彭家庄道路硬化，全长793米。主干路长265米，三条支路长528米。 | K104: 793米道路硬化 | L104: 200000 | N104: 200000 | O104: 75000 | R104: 475000 | S104: 2024.10.17 | T104: 2024.10.31 | U104: 2024.12.24 | V104: 未超
A105: 99 | B105: 荣家湾镇 | C105: 欣荣村 | D105: 1022 | E105: 1728 | F105: 4767 | G105: 1700 | H105: 杰四欧里家山机耕路建设工程 | I105: 100 | J105: 荒山开路平整压实长约2900米，及其附属工程 | K105: 2900米机耕路 | L105: 120000 | N105: 120000 | O105: 62600 | R105: 302600 | S105: 2024.7.2 | T105: 2024.12.20 | U105: 2024.12.24 | V105: 未超
A106: 100 | B106: 荣家湾镇 | C106: 欣荣村 | D106: 1022 | E106: 1728 | F106: 4767 | G106: 1700 | H106: 东庄片杰四欧庄上组门前塘取淤护砌工程 | I106: 50 | J106: 塘内取淤1287立方；砖护砌54立方；混凝土护砌及堤面硬化28.7立方；塘围护栏90平方。 | K106: 1个堰塘取淤1287立方 | L106: 50000 | N106: 50000 | O106: 21000 | R106: 121000 | S106: 2024.7.2 | T106: 2024.11.22 | U106: 2024.12.24 | V106: 未超
A107: 101 | B107: 荣家湾镇 | C107: 兴园村 | D107: 1005 | E107: 840 | F107: 3828 | G107: 2373 | H107: 兴园村兰侯家道路提质改造工程 | I107: 175 | J107: 兴园村兰侯家道路硬化白改黑，全长1000米，平均拓宽1.5米，厚0.2米。 | K107: 1000米道路硬化 | L107: 170000 | N107: 170000 | O107: 100000 | Q107: 45000 | R107: 485000 | S107: 2024.8.4 | T107: 202.8.25 | U107: 2024.12.24 | V107: 未超
A108: 102 | B108: 荣家湾镇 | C108: 文发村 | D108: 850 | E108: 960 | F108: 3685 | G108: 800 | H108: 三塘片对门山开荒复耕工程 | I108: 80 | J108: 大挖机清表；大挖机开荒；树根清理销毁；大造抗旱水井及其他设施。 | K108: 开荒78亩 | L108: 60000 | N108: 60000 | O108: 22000 | R108: 142000 | S108: 2024.11.10 | T108: 2024.11.30 | U108: 2024.12.24 | V108: 未超
A109: 103 | B109: 荣家湾镇 | C109: 公诚村 | D109: 1020 | E109: 2630 | F109: 3750 | G109: 6520 | H109: 富强片主路扩宽硬化工程 | I109: 128 | J109: 富强片杨五庙至金星小学主路长622米，拓宽硬化。 | K109: 扩宽硬化622米 | L109: 130000 | N109: 130000 | Q109: 35940 | R109: 295940 | S109: 2024.9.26 | T109: 2024.11.22 | U109: 2024.12.24 | V109: 未超
A110: 104 | B110: 荣家湾镇 | C110: 牛皋村 | D110: 1085 | E110: 2180 | F110: 4320 | G110: 7630 | H110: 牛皋片贺耕九机耕路硬化工程 | I110: 150 | J110: 牛皋片贺耕九机耕路长约1350米；宽3米；厚0.2米。 | K110: 机耕路硬化1350米 | L110: 160000 | N110: 160000 | O110: 60000 | Q110: 19400 | R110: 399400 | S110: 2024.7.1 | T110: 2024.7.15 | U110: 2024.12.24 | V110: 未超
A111: 105 | B111: 荣家湾镇 | C111: 荣鹿新村 | D111: 902 | E111: 600 | F111: 3668 | G111: 3360 | H111: 华群片七组通组道路硬化工程 | I111: 100 | J111: 华群片通组道路长约800米；宽3.5米；厚0.2米。 | K111: 道路硬化800米 | L111: 80000 | N111: 80000 | O111: 80000 | Q111: 8800 | R111: 248800 | S111: 2024.9.12 | T111: 2024.9.20 | U111: 2024.12.24 | V111: 未超
A112: 106 | B112: 张谷英镇 | C112: 大峰村 | D112: 275 | E112: 405 | F112: 1029 | G112: 628 | H112: 大峰村金西片主干道路提质改造工程 | I112: 75 | J112: 金西片主干道路段长660米，宽5米，改造后路面及分路口铺设AC-13中粒改性沥青，厚度为5.5cm。 | K112: 道路白改黑660米3300平方米 | L112: 170000 | N112: 170000 | O112: 23585 | R112: 363585 | S112: 2024.7..10 | T112: 2024.8.10 | U112: 2024.12.26 | V112: 未超
A113: 107 | B113: 张谷英镇 | C113: 大峰村 | D113: 275 | E113: 405 | F113: 1029 | G113: 628 | H113: 大峰村金西片主干道路拓宽硬化工程 | I113: 75 | J113: 金西片主干道路段长660米，原路面宽均为3.5米，拓宽硬化至5米后，两边新建20cm宽排水沟。 | K113: 道路硬化660米 | L113: 130000 | N113: 130000 | O113: 15630 | R113: 275630 | S113: 2024.7.10 | T113: 2024.8.10 | U113: 2024.12.26 | V113: 未超
A114: 108 | B114: 张谷英镇 | C114: 大明山村 | D114: 599 | E114: 1200 | F114: 2373 | G114: 483.9 | H114: 大明山寺连接道路硬化 | I114: 149 | J114: 将大明山村连接道路长520米，宽3.5米的道路硬化。 | K114: 道路硬化520米 | L114: 170000 | N114: 170000 | P114: 8500 | R114: 348500 | S114: 2024.10.25 | T114: 2024.11.10 | U114: 2024.12.26 | V114: 未超
A115: 109 | B115: 张谷英镇 | C115: 倒溪村 | D115: 40 | E115: 54 | F115: 2054 | G115: 450 | H115: 倒溪村水渠疏通及护砌项目 | I115: 50 | J115: 将倒溪村师堂片仙人组275米长进行疏通、护砌。 | K115: 水渠疏通护砌275米 | L115: 160000 | N115: 160000 | Q115: 29900 | R115: 349900 | S115: 2024.10.5 | T115: 2024.11.20 | U115: 2024.12.26 | V115: 未超
A116: 110 | B116: 张谷英镇 | C116: 风水村 | D116: 1456 | E116: 2160 | F116: 4884 | G116: 4863 | H116: 风水村和美乡村屋场升级改造建设项目 | I116: 120 | J116: 对全村四个重要屋场“脏、乱、差”进行屋场改造整治，兰陵勘屋组屋场硬化265平方，新改组屋场护砌169立方，寺湾片丁家里屋场520平方，十美片油铺组新建挡土墙141立方，大桥片五六组连接处新建挡土墙49方，郭塝里坟山处渠道护砌86立方。 | K116: 屋场硬化785平方、护砌396立方 | L116: 150000 | N116: 150000 | O116: 10000 | Q116: 27986 | R116: 337986 | S116: 2024.10.1 | T116: 2024.11.4 | U116: 2024.12.25 | V116: 未超
A117: 111 | B117: 张谷英镇 | C117: 莲花湖村 | D117: 738 | E117: 1425 | F117: 2319 | G117: 1019 | H117: 五星组道路拓宽 | I117: 75 | J117: 项目位于大坳片五星组上渠道处，对该处道路急弯陡坡拉直拓宽（驳岸护砌长45米*平均高6.5米，平均宽1.8米；混凝土硬化长45米，高7米的三角形路面。 | K117: 驳岸护砌526.5立方 | L117: 140000 | N117: 140000 | O117: 51530 | R117: 331530 | S117: 2024.10.9 | T117: 2024.10.31 | U117: 2024.12.23 | V117: 未超
A118: 112 | B118: 张谷英镇 | C118: 松树村 | D118: 869 | E118: 1276 | F118: 2887 | G118: 760 | H118: 向阳片白井洞李泽民屋前港墈护砌项目 | I118: 80 | J118: 向阳片白井洞李泽民屋前港墈护砌，护砌长150米，宽1米，高4米。 | K118: 港墈护砌600立方米 | L118: 100000 | N118: 100000 | O118: 10000 | Q118: 93130 | R118: 303130 | S118: 2024.9.1 | T118: 2024.10.15 | U118: 2024.12.26 | V118: 未超
A119: 113 | B119: 张谷英镇 | C119: 大峰村 | D119: 275 | E119: 405 | F119: 1028 | G119: 628 | H119: 大峰村江南片道路提质改造工程 | I119: 80 | J119: 南片东头组至新屋组道路340米，提质改造后路面及分路口铺设AC-13中粒改性沥青，厚度为5.5cm。 | K119: 白改黑340米1700平方米 | L119: 160000 | N119: 160000 | O119: 15900 | R119: 335900 | S119: 2024.11.25 | T119: 2024.12.25 | U119: 2024.2.1 | V119: 未超
A120: 114 | B120: 张谷英镇 | C120: 渭洞村 | D120: 991 | E120: 1240 | F120: 3745 | G120: 3500 | H120: 群英港新塘年段港墈护砌建设项目 | I120: 70 | J120: 群英港新塘年段港墈护砌576立方 | K120: 港磡护砌576立方 | L120: 140000 | N120: 140000 | Q120: 23020 | R120: 303020 | S120: 2024.10.10 | T120: 2024.10.28 | U120: 2024.2.2 | V120: 未超 | XFD120: =SUBTOTAL(9,A120:XFC120) -> 312680
A121: 115 | B121: 张谷英镇 | C121: 天龙村 | D121: 1505 | E121: 2230 | F121: 5388 | G121: 1487 | H121: 袁家里田磡护砌建设项目 | I121: 50 | J121: 袁家里田磡护砌长96米、高4米、宽1.2米共计460.8个立方，护砌平整，底部用钢筋护基 | K121: 田磡护砌460.8立方 | L121: 120000 | N121: 120000 | Q121: 12956 | R121: 252956 | S121: 2024.9.30 | T121: 2024.10.30 | U121: 2024.12.26 | V121: 未超
A122: 116 | B122: 杨林镇 | C122: 杨林街村 | D122: 1735 | E122: 3568 | F122: 5160 | G122: 6600 | H122: 奎星道路硬化项目 | I122: 150 | J122: 采用挖机路基清基，打驳岸24米长*60公分高*60公分宽，上山路全程采用水泥砂石硬化厚度20公分，全长447米，平均路面宽度4.7米。 | K122: 道路硬化447米 | L122: 170000 | N122: 170000 | O122: 3000 | Q122: 2200 | R122: 345200 | S122: 2024.10.20 | T122: 2024.11.10 | U122: 2024.12.27 | V122: 未超
A123: 117 | B123: 杨林镇 | C123: 尚书村 | D123: 1206 | E123: 2657 | F123: 3976 | G123: 3883 | H123: 罗家桥拆除重建 | I123: 140 | J123: 旧桥拆除重建，桥墩护体浆砌石护砌 | K123: 12米桥梁1座 | L123: 140000 | N123: 140000 | O123: 10000 | Q123: 5000 | R123: 295000 | S123: 2024.10.1 | T123: 2024.11.18 | U123: 2025.1.13 | V123: 未超
A124: 118 | B124: 杨林镇 | C124: 花果园村 | D124: 877 | E124: 2314 | F124: 3560 | G124: 3500 | H124: 东塘组茶坡塘清淤护砌 | I124: 50 | J124: 山塘清淤面积7亩，基脚混凝土27立方，钢筋1吨，护砌38立方，淤泥外运800立方，水沟长9米，30涵管8米。 | K124: 清淤护砌堰塘1个 | L124: 60000 | N124: 60000 | O124: 6000 | Q124: 3000 | R124: 129000 | S124: 2024.11.26 | T124: 2024.12.24 | U124: 2025.1.13 | V124: 未超
A125: 119 | B125: 杨林镇 | C125: 花果园村 | D125: 877 | E125: 2314 | F125: 3560 | G125: 3500 | H125: 沈塘组自来水安装 | I125: 30 | J125: 90#PE水管 185米，75#PE水管600米，开挖、回填900米，水泥路破碎及修复75米，止水阀开关及配件3000元。 | K125: 饮水管线800米 | L125: 60000 | N125: 60000 | O125: 3000 | Q125: 3000 | R125: 126000 | S125: 2024.10.22 | T125: 2024.11.21 | U125: 2024.10.30 | V125: 未超
A126: 120 | B126: 杨林镇 | C126: 城山舟村 | D126: 1101 | E126: 2860 | F126: 5260 | G126: 4800 | H126: 条屋组道路硬化 | I126: 170 | J126: 将条屋组道路进行硬化（道路全长600米，宽2.5米，厚0.2米）。 | K126: 道路硬化600米 | L126: 170000 | N126: 170000 | O126: 10000 | P126: 3000 | Q126: 3000 | R126: 356000 | S126: 2024.10.15 | T126: 2024.10.30 | U126: 2024.12 | V126: 未超
A127: 121 | B127: 杨林镇 | C127: 王安村 | D127: 1756 | E127: 4020 | F127: 5760 | G127: 2981 | H127: 杨林小镇塌方道路维修 | I127: 160 | J127: 道路全长150米，土方外运5400立方米，碾压平整5400立方米，碾压平整5400立方米，浆砌石313.5立方米。 | K127: 道路维修150米 | L127: 160000 | N127: 160000 | O127: 45000 | Q127: 15500 | R127: 380500 | S127: 2024.9.25 | T127: 2024.10.25 | U127: 2025.1.13 | V127: 未超
A128: 122 | B128: 杨林镇 | C128: 姑桥村 | D128: 901 | E128: 2585 | F128: 3692 | G128: 2727 | H128: 水毁道路维修 | I128: 75 | J128: 姑桥村水毁道路进行维修，山体滑坡清理3400立方，道路硬化610米长，宽4米。该工程共投入23.18万元。 | K128: 道路维修610米 | L128: 200000 | N128: 200000 | O128: 10000 | Q128: 3800 | R128: 413800 | S128: 2024.7.15 | T128: 2024.8.30 | U128: 2024.10.30 | V128: 未超
A129: 123 | B129: 杨林镇 | C129: 姑桥村 | D129: 901 | E129: 2585 | F129: 3692 | G129: 2727 | H129: 马家塘维修 | I129: 30 | J129: 将马家冲塘清淤提坎补土后加固硬化，修好溢洪口 | K129: 堰塘1个2000立方 | L129: 30000 | N129: 30000 | O129: 6400 | Q129: 1800 | R129: 68200 | S129: 2024.11.1 | T129: 2024.11.20 | U129: 2024.1.23 | V129: 未超
A130: 124 | B130: 杨林镇 | C130: 溪源村 | D130: 744 | E130: 2385 | F130: 3180 | G130: 2980 | H130: 坪山组排水沟驳岸护砌 | I130: 83 | J130: 排水沟长468米，深0.8米，驳岸448立方米，长281米，高 米，底宽1米，面宽0.6米。 | K130: 浆砌石护砌448立方米涵洞预埋468米 | L130: 200000 | N130: 200000 | O130: 10000 | Q130: 5000 | R130: 415000 | S130: 2024.1 | T130: 2024.11 | U130: 2024.12.24 | V130: 未超
A131: 125 | B131: 中洲乡 | C131: 中洲村 | D131: 88 | E131: 160 | F131: 260 | G131: 442 | H131: 天灯片道路硬化 | I131: 225 | J131: 对天灯片350米道路进行硬化，共1200平方 | K131: 350米共1200平方 | L131: 142600 | N131: 142600 | R131: 285200 | S131: 2024.11.1 | T131: 2024.11.15 | U131: 2025.1.7 | V131: 未超
A132: 126 | B132: 中洲乡 | C132: 中洲村 | D132: 73 | E132: 140 | F132: 248 | G132: 420 | H132: 十三号型机耕桥建设 | I132: 150 | J132: 对原有简易机耕桥重建一座十三号型机耕桥 | K132: 机耕桥1座 | L132: 102600 | N132: 102600 | R132: 205200 | S132: 2024.11.1 | T132: 2024.11.15 | U132: 2025.1.7 | V132: 未超
A133: 127 | B133: 中洲乡 | C133: 中洲村 | D133: 80 | E133: 135 | F133: 230 | G133: 390 | H133: 坪垸四组道路硬化 | I133: 80 | J133: 对135米道路进行硬化。 | K133: 135米道路硬化 | L133: 54800 | N133: 54800 | R133: 109600 | S133: 2024.11.1 | T133: 2024.11.15 | U133: 2025.1.7 | V133: 未超
A134: 128 | B134: 中洲乡 | C134: 宝塔村 | D134: 985 | F134: 3222 | G134: 4836 | H134: 宝塔片山塘维修 | I134: 400 | J134: 拆除栏杆、清淤、护砌、铺管、路面硬化 | K134: 整修堰塘1个 | L134: 200000 | N134: 200000 | Q134: 13400 | R134: 413400 | S134: 2024.11.21 | T134: 2024.12.21 | U134: 2024.12.19 | V134: 未超
A135: 129 | B135: 中洲乡 | C135: 宝塔村 | D135: 985 | F135: 3222 | G135: 4836 | H135: 红旗九组道路维修 | I135: 200 | J135: 路基平整1568.5㎡、铺设碎石片1323.6㎡、路面硬化1323.6㎡、拆除路面18㎡、埋设PE300管6米.路肩土78m3. | K135: 路面硬化1323.6㎡ | L135: 100000 | N135: 100000 | Q135: 66100 | R135: =SUBTOTAL(9,L135:Q135) -> 266100 | S135: 2024.12.12 | T135: 2024.12.27 | U135: 2024.11.21 | V135: 未超
A136: 130 | B136: 中洲乡 | C136: 三江村 | D136: 1650 | E136: 1900 | F136: 4650 | G136: 7347 | H136: 灌溉渠道硬化衬砌 | I136: 180 | J136: 320米灌溉渠道硬化衬砌 | K136: 320米渠道 | L136: 120000 | N136: 120000 | R136: 240000 | S136: 2024.10.5 | T136: 2024.10.25 | U136: 2024.1.10 | V136: 未超
A137: 131 | B137: 中洲乡 | C137: 平江河村 | D137: 1150 | E137: 1900 | F137: 4015 | G137: 7067 | H137: 十八组机耕路建设 | I137: 120 | J137: 十八组1500米机耕路建设 | K137: 1500米机耕路 | L137: 80000 | N137: 80000 | R137: 160000 | S137: 2024.12.2 | T137: 2024.12.18 | U137: 2025.1.10 | V137: 未超
A138: 132 | B138: 中洲乡 | C138: 巴陵村 | D138: 630 | E138: 2300 | F138: 3072 | G138: 4500 | H138: 青镜片道路维修 | I138: 110 | J138: 巴陵村青镜片一组410米道路白改黑，铺设沥青1435㎡，厚度8㎝。 | K138: 410米1435平方米白改黑 | L138: 80000 | N138: 80000 | R138: 160000 | S138: 2024.11.1 | T138: 2024.11.15 | U138: 2025.1.10 | V138: 未超
A139: 133 | B139: 鹿角区域 | C139: 荣湾湖村 | D139: 1687 | E139: 1930 | F139: 4829 | G139: 3800 | H139: 兴无片道路拓宽改造建设工程 | I139: 100 | J139: 道路拓宽硬化全长848米，破除砼路面和地坪155米，面积1390平方米；厚度0.2米，拓宽路面与原路面钢筋插入连接。 | K139: 道路硬化848米 | L139: 100000 | N139: 100000 | O139: 0 | P139: 0 | Q139: 72935 | R139: 272935 | S139: 2024.9.23 | T139: 2024.11.22 | U139: 2025.1.13 | V139: 未超
A140: 134 | B140: 鹿角区域 | C140: 荣湾湖村 | D140: 1687 | E140: 1930 | F140: 4829 | G140: 3800 | H140: 荣湾湖村孙坞片胥明屋大塘清淤护彻及排污管道建设 | I140: 150 | J140: 铺埋500#污水管300米，清除淤泥6000立方米，片石护砌长80米，下底1.5米宽，高2米，上底1米宽，高1.5米，共计360立方米。 | K140: 整修堰塘1个 | L140: 150000 | N140: 150000 | O140: 0 | P140: 0 | Q140: 114600 | R140: 414600 | S140: 2024.11.12 | T140: 2024.12.21 | U140: 2025.1.13 | V140: 未超
A141: 135 | B141: 鹿角区域 | C141: 鹿角村 | D141: 1092 | E141: 2180 | F141: 4320 | G141: 4630 | H141: 鹿角村杨茂片道路拓宽硬化 | I141: 50 | J141: 杨茂片道路硬化长约452米、拓宽1.5米、厚0.2米。 | K141: 452米道路硬化 | L141: 50000 | N141: 50000 | O141: 10000 | P141: 0 | Q141: 3650 | R141: 113650 | S141: 2024.7.1 | T141: 2024.7.15 | U141: 2024.1.29 | V141: 未超
A142: 136 | B142: 鹿角区域 | C142: 鹿角村 | D142: 1092 | E142: 2180 | F142: 4320 | G142: 4630 | H142: 斗坡山基础设施建设 | I142: 150 | J142: 将斗坡山进行通水通电，并把道路铺垫,道路平整4000米，机电井安装3处。 | K142: 道路平整4000米，机电井安装3处 | L142: 200000 | N142: 200000 | O142: 0 | P142: 0 | Q142: 47000 | R142: 447000 | S142: 2024.3.25 | T142: 2024.7.25 | U142: 2025.1.12 | V142: 未超
